{"text_format":"1","workbook":"xlsx","n_sheets":16,"sheets":["↓","✗","Site","Fund center","Profit center","Cost center","MIS code","Commit","Object","Asset","Statistic","Financial","Trust","Sub","Fund","Other"],"not_rendered":{"charts":0,"images":0,"macros":1,"external_links":0,"defined_names":8,"comments":0,"pivot_tables":0},"unopened":[],"bounds":{"document_bytes":16777216,"sheet_cells":100000,"rows_first":2000,"rows_last":500,"rows_between":2000,"halvings":0,"cell_chars":16384,"cell_head_chars":4096},"cells_cut":0,"cells_raw":0,"read":"whole","date_system":"1900"}

{"sheet":"↓","index":0,"n_rows":198,"n_cols":16,"rows_kept":198,"cut":false,"hidden":true,"merged":[]}
["Mã có tên","Site","SITE (CƠ SỞ KINH DOANH)","FUND CENTER (BỘ PHẬN LẬP NGÂN SÁCH)","PROFIT CENTER","COST CENTER (BỘ PHẬN)","MIS CODE (MÃ LẬP BÁO CÁO QUẢN TRỊ)","COMMIT (MÃ KHOẢN MỤC)","MÃ KHOẢN MỤC NGÂN SÁCH","ĐỐI TƯỢNG DỊCH VỤ","QUỸ","MỨC ĐỘ TIN CẬY","SỐ TG PB","MÃ PHỤ","FINANCIAL STATEMENT","_"]
[true,"HY",{"$f":"_xlfn.LET(_xlpm.a,L_SI[Site],\n_xlpm.a&IF($A$2,\";\"&_xlfn.XLOOKUP(_xlpm.a,L_SI[Site],L_SI[Name]),\"\"))","v":"HO;Quản lý chung"},{"$f":"_xlfn.LET(_xlpm.a,L_FC[Fund center],\n_xlpm.a&IF($A$2,\";\"&_xlfn.XLOOKUP(_xlpm.a,L_FC[Fund center],L_FC[FC name]),\"\"))","v":"ECOPM001;Ban giám đốc"},{"$f":"_xlfn.LET(_xlpm.a,L_PC[Profit center],\n_xlpm.a&IF($A$2,\";\"&_xlfn.XLOOKUP(_xlpm.a,L_PC[Profit center],L_PC[PC name]),\"\"))","v":"ECOPM001;Ban giám đốc"},{"$f":"_xlfn.LET(_xlpm.a,_xlfn._xlws.FILTER(L_CC[Cost center],ISNUMBER(SEARCH($B$2,L_CC[Site]))),\n_xlpm.a&IF($A$2,\";\"&_xlfn.XLOOKUP(_xlpm.a,L_CC[Cost center],L_CC[CC name]),\"\"))","v":{"$error":"#VALUE!"}},{"$f":"_xlfn.LET(_xlpm.c,L_Mis[MIS code],_xlpm.c&IF($A$2,\";\"&_xlfn.XLOOKUP(_xlpm.c,L_Mis[MIS code],L_Mis[MIS name]),\"\"))","v":"14_;Doanh thu Ecobus"},{"$f":"_xlfn.LET(_xlpm.c,L_CI[CI code],_xlpm.c&IF($A$2,\";\"&_xlfn.XLOOKUP(_xlpm.c,L_CI[CI code],L_CI[CI name]),\"\"))","v":"DT0001;DT xe Bus"},{"$f":"_xlfn.LET(\n_xlpm.a,_xlfn.LET(_xlpm.c,L_CI[CI code],_xlpm.c&IF($A$2,\";\"&_xlfn.XLOOKUP(_xlpm.c,L_CI[CI code],L_CI[CI name]),\"\")),\n_xlpm.b,_xlfn.LET(_xlpm.s,L_ST[Statistics],_xlpm.s&IF($A$2,\";\"&_xlfn.XLOOKUP(_xlpm.s,L_ST[Statistics],L_ST[Statistics name]),\"\")),\n_xlpm.c,ROWS(_xlpm.a),_xlpm.d,ROWS(_xlpm.b),_xlpm.e,_xlpm.c+_xlpm.d,IF(_xlfn.SEQUENCE(_xlpm.e)<=_xlpm.c,INDEX(_xlpm.a,_xlfn.SEQUENCE(_xlpm.c),{1}),INDEX(_xlpm.b,_xlfn.SEQUENCE(_xlpm.e)-_xlpm.c,{1})))","v":"DT0001;DT xe Bus"},{"$f":"_xlfn.LET(_xlpm.a,L_OJ[Object],\n_xlpm.a&IF($A$2,\";\"&_xlfn.XLOOKUP(_xlpm.a,L_OJ[Object],L_OJ[Object name]),\"\"))","v":"DA0000;Văn phòng Park 2"},{"$f":"_xlfn.LET(_xlpm.a,L_FD[Fund],\n_xlpm.a&IF($A$2,\";\"&_xlfn.XLOOKUP(_xlpm.a,L_FD[Fund],L_FD[Fund name]),\"\"))","v":"CĐT;Chủ đầu tư"},{"$f":"L_TR[Trust]","v":"Rất cao"},{"$f":"L_KY[KỲ PB]","v":0},{"$f":"L_SUB[Sub code]","v":0},{"$f":"_xlfn.LET(_xlpm.a,L_FS[FS code],\n_xlpm.a&IF($A$2,\";\"&_xlfn.XLOOKUP(_xlpm.a,L_FS[FS code],L_FS[FS name]),\"\"))","v":"001_;Doanh thu bán hàng"}]
[null,null,"PQL;Phí quản lý","ECOPM002;Kế toán","ECOPM002;Kế toán",null,"29_;Nguồn khai thác SHC","DT0002;DT xe Bus/ Quảng cáo","DT0002;DT xe Bus/ Quảng cáo","DA0001;BĐX Chợ Ướt","QVH;Quỹ vận hành","Cao",1,null,"002_;Chiết khấu, giảm giá"]
[null,null,"BĐX;Bãi đỗ xe","ECOPM003;Chăm sóc cư dân","ECOPM003;Chăm sóc cư dân",null,"89_;Thu nhập khác","DT0003;DT xe Bus/ Thẻ tháng","DT0003;DT xe Bus/ Thẻ tháng","DA0002;VPTĐ (VP1)","QBT;Quỹ bảo trì","TB",2,null,"011_;Giá vốn hàng bán"]
[null,null,"Bus;Xe bus","ECOPM004;Kỹ thuật","ECOPM004;Kỹ thuật",null,"41_;Doanh thu khai thác hạ tầng","DT0004;DT xe Bus/ Vé lẻ","DT0004;DT xe Bus/ Vé lẻ","DA0003;VPTĐ (VP2)",null,"Thấp",3,null,"021_;Doanh thu tài chính"]
[null,null,"CLB;Câu lạc bộ","ECOPM005;An ninh","ECOPM005;An ninh",null,"39_;Doanh thu CLB","DT0005;DT xe điện/ Vé lẻ","DT0005;DT xe điện/ Vé lẻ","DA0004;VPTĐ (khu Miếu)",null,null,6,null,"022_;Chi phí tài chính"]
[null,null,"Leasing;Cho thuê","ECOPM006;MTĐT","ECOPM006;MTĐT",null,"49_;Doanh thu hầm ô tô","DT0006;Thu nhập khác","DT0006;Thu nhập khác","DA0005;VPTĐ (Nhà ăn)",null,null,9,null,"025_;Chi phí bán hàng"]
[null,null,"QLTC;Quản lý thi công","ECOPM007;Ecobus","ECOPM007;Ecobus",null,"22_;Doanh thu PQL","DT0007;Thu tiền phạt","DT0007;Thu tiền phạt","DA0007;Công viên Hồ Thiên Nga",null,null,12,null,"026_;Chi phí quản lý"]
[null,null,"QBT;Quỹ bảo trì","ECOPM008;CLB tiện ích","ECOPM008;CLB tiện ích",null,"48_;Doanh thu điện","DT0008;DT CLB/ Bán hàng hóa","DT0008;DT CLB/ Bán hàng hóa","DA0009;Công viên Mùa Hạ",null,null,15,null,"031_;Thu thập khác"]
[null,null,"Khác;Khác","ECOPM012;QLTC","ECOPM012;QLTC",null,"30_;Doanh thu nước","DT0009;DT CLB/ Cho thuê khăn","DT0009;DT CLB/ Cho thuê khăn","DA0010;VPTĐ (VP Ban kinh doanh)",null,null,18,null,"032_;Chi phí khác"]
[null,null,null,"ECOPM015;Bàn giao","ECOPM015;Bàn giao",null,"60_;Bảo hiểm cháy nổ","DT0010;DT CLB/ Cho thuê sự kiện","DT0010;DT CLB/ Cho thuê sự kiện","DA0011;Công viên Mùa Xuân",null,null,21,null,"110_;Tiền và các khoản tương đương tiền"]
[null,null,null,"ECOPM016;Leasing","ECOPM016;Leasing",null,"53_;Thẻ các loại","DT0011;DT CLB/ Đồ ăn","DT0011;DT CLB/ Đồ ăn","DA0021;Nhà máy nước",null,null,24,null,"120_;Các khoản đầu tư tài chính ngắn hạn"]
[null,null,null,"ECOPM054;PCCC & CNCH","ECOPM054;PCCC & CNCH",null,"86_;Doanh thu chợ","DT0012;DT CLB/ Đồ uống","DT0012;DT CLB/ Đồ uống","DA0022;Hạ tầng chung KĐT",null,null,27,null,"130_;Các khoản phải thu ngắn hạn"]
[null,null,null,"ECOPM055;Khối hỗ trợ","ECOPM055;Khối hỗ trợ",null,"63_;Doanh thu sự kiện","DT0013;DT CLB/ Huấn luyện viên PT","DT0013;DT CLB/ Huấn luyện viên PT","DA0023;Chợ Ecosunday",null,null,30,null,"140_;Hàng tồn kho"]
[null,null,null,"ECOPM082;Nhà hàng","ECOPM082;Nhà hàng",null,"50_;Doanh thu leasing","DT0014;DT CLB/ Khác","DT0014;DT CLB/ Khác","DA0024;Văn phòng BQL GĐ1",null,null,33,null,"150_;Chi phí trả trước ngắn hạn"]
[null,null,null,"ECOPM100;BQL GĐ1","ECOPM100;BQL GĐ1",null,"18_;Doanh thu QLTC","DT0015;DT CLB/ Vé học bơi","DT0015;DT CLB/ Vé học bơi","DA0025;VPTĐ (Nhà mẫu dự án)",null,null,36,null,"152_;Thuế GTGT được khấu trừ HĐKD"]
[null,null,null,"ECOPM200;BQL GĐ2","ECOPM200;BQL GĐ2",null,"73_;Lãi tiền gửi","DT0016;DT CLB/ Vé Tenis","DT0016;DT CLB/ Vé Tenis","DA0026;VPTĐ (VP BQLDA)",null,null,39,null,"153_;Thuế GTGT được khấu trừ HĐĐT"]
[null,null,null,"ECOPM300;BQL GĐ3","ECOPM300;BQL GĐ3",null,"47_;Doanh thu nhà hàng","DT0017;DT CLB/Vé (Bơi.Gym,\\Sauna)","DT0017;DT CLB/Vé (Bơi.Gym,\\Sauna)","DA0029;Văn phòng BQL GĐ2",null,null,42,null,"158_;Tài sản ngắn hạn khác"]
[null,null,null,"ECOPM500;Ban quản trị","ECOPM500;Ban quản trị",null,"71_;Doanh thu từ CĐT","DT0018;DT TMDV/ Đỗ xe đạp điện","DT0018;DT TMDV/ Đỗ xe đạp điện","DA0030;Văn phòng BQL GĐ3",null,null,null,null,"210_;Các khoản phải thu dài hạn"]
[null,null,null,"ECOPM800;BQL Onsen","ECOPM800;BQL Onsen",null,"58_;Thu hộ BQT","DT0019;DT TMDV/ Đỗ xe máy tháng","DT0019;DT TMDV/ Đỗ xe máy tháng","DA0031;Kênh vành đai",null,null,null,null,"220_;Tài sản cố định"]
[null,null,null,null,null,null,"77_;Doanh thu nước khoáng Onsen","DT0020;DT TMDV/ Đỗ xe ô tô tháng","DT0020;DT TMDV/ Đỗ xe ô tô tháng","DA0114;CLB Rừng Cọ",null,null,null,null,"223_;Hao mòn TSCĐ"]
[null,null,null,null,null,null,"11_;Chi phí quản lý khối back","DT0021;DT TMDV/ Đỗ xe máy vãng lai","DT0021;DT TMDV/ Đỗ xe máy vãng lai","DA0115;Chung Rừng Cọ",null,null,null,null,"231_;Bất động sản đầu tư"]
[null,null,null,null,null,null,"27_;Chi phí thuế","DT0022;DT Quản lý","DT0022;DT Quản lý","DA0116;BĐX Rừng Cọ",null,null,null,null,"232_;Hao mòn BĐS đầu tư"]
[null,null,null,null,null,null,"15_;Chi phí đào tạo/tuyển dụng","DT0023;DT Tiền điện thu hộ","DT0023;DT Tiền điện thu hộ","DA0117;Leasing Rừng Cọ",null,null,null,null,"240_;Tài sản dở dang dài hạn"]
[null,null,null,null,null,null,"36_;Chi phí phúc lợi","DT0024;DT Tiền nước thu hộ","DT0024;DT Tiền nước thu hộ","DA0118;Trạm XLNT số 1",null,null,null,null,"250_;Các khoản đầu tư tài chính dài hạn"]
[null,null,null,null,null,null,"20_;Chi phí tiền lương","DT0025;DT TMDV/ Bảo hiểm cháy nổ","DT0025;DT TMDV/ Bảo hiểm cháy nổ","DA0202;Chung Phố Trúc",null,null,null,null,"260_;Tổng tài sản dài hạn khác"]
[null,null,null,null,null,null,"10_;Chi phí vật tư, CCDC","DT0026;DT TMDV/ Cấp thẻ các loại","DT0026;DT TMDV/ Cấp thẻ các loại","DA0203;BĐX Highland",null,null,null,null,"269_;Lợi thế thương mại"]
[null,null,null,null,null,null,"54_;Chi phí công tác","DT0027;DT TMDV/ Chợ cuối tuần","DT0027;DT TMDV/ Chợ cuối tuần","DA0302;CLB Vườn Tùng",null,null,null,null,"311_;Phải trả người bán ngắn hạn"]
[null,null,null,null,null,null,"16_;Chi phí năng lượng/Nhiên liệu","DT0028;DT TMDV/ Cho thuê bạt","DT0028;DT TMDV/ Cho thuê bạt","DA0303;Chung Vườn Tùng",null,null,null,null,"312_;Người mua trả tiền trước"]
[null,null,null,null,null,null,"25_;Chi phí bảo trì","DT0029;DT TMDV/ Cho thuê sự kiện","DT0029;DT TMDV/ Cho thuê sự kiện","DA0402;CLB Vườn Mai",null,null,null,null,"313_;Thuế và các khoản phải nộp NN"]
[null,null,null,null,null,null,"64_;Dịch vụ thuê ngoài","DT0030;DT TMDV/Cho thuê trạm P.Sóng","DT0030;DT TMDV/Cho thuê trạm P.Sóng","DA0403;Chung Vườn Mai",null,null,null,null,"314_;Phải trả nhân viên"]
[null,null,null,null,null,null,"46_;Chi phí diệt côn trùng, chuột","DT0031;DT TMDV/ Đặt QC,tờ rơi,Standee","DT0031;DT TMDV/ Đặt QC,tờ rơi,Standee","DA0502;Chung Phố Cúc",null,null,null,null,"315_;Chi phí phải trả ngắn hạn"]
[null,null,null,null,null,null,"38_;Giá vốn bán hàng","DT0032;DT TMDV/ Điểm đỗ xe hãng Taxi","DT0032;DT TMDV/ Điểm đỗ xe hãng Taxi","DA0603;CLB Park River",null,null,null,null,"318_;Doanh thu chưa thực hiện ngắn hạn"]
[null,null,null,null,null,null,"67_;Giặt là và Service charge","DT0033;DT TMDV/ Khác","DT0033;DT TMDV/ Khác","DA0604;Chung Park River",null,null,null,null,"319_;Các khoản phải trả ngắn hạn khác"]
[null,null,null,null,null,null,"85_;Hóa chất","DT0034;DT TMDV/ Vệ sinh gia tăng","DT0034;DT TMDV/ Vệ sinh gia tăng","DA0801;S3- Skyoasis",null,null,null,null,"320_;Vay và nợ thuê tài chính ngắn hạn"]
[null,null,null,null,null,null,"52_;Chi phí kiểm định","DT0035;DT Leasing - cho thuê mặt bằng","DT0035;DT Leasing - cho thuê mặt bằng","DA0802;S-Premium-Skyoasis",null,null,null,null,"321_;Vay và nợ dài hạn đến hạn trả"]
[null,null,null,null,null,null,"17_;Chi phí sửa chữa lớn TSCĐ","DT0036;DT TMDV/VS,AN trong an toàn TC","DT0036;DT TMDV/VS,AN trong an toàn TC","DA0803;S1-Skyoasis",null,null,null,null,"331_;Phải trả người bán dài hạn"]
[null,null,null,null,null,null,"42_;Thu gom rác","DT0037;Doanh thu tài chính","DT0037;Doanh thu tài chính","DA0804;S2-Skyoasis",null,null,null,null,"336_;Doanh thu chưa thực hiện dài hạn"]
[null,null,null,null,null,null,"26_;Chi phí an ninh","DT0038;Doanh thu dich vụ bảo trì","DT0038;Doanh thu dich vụ bảo trì","DA0805;Chung Sky Oasis",null,null,null,null,"338_;Vay và nợ thuê tài chính dài hạn"]
[null,null,null,null,null,null,"57_;Chi phí vệ sinh","DT0039;DT phí QL/ khu TM cho thuê","DT0039;DT phí QL/ khu TM cho thuê","DA0806;CLB Sky Oasis",null,null,null,null,"342_;Dự phòng phải trả dài hạn"]
[null,null,null,null,null,null,"23_;Chi phí thuê tài sản","DT0040;DT nhà hàng Biệt Thự Đảo","DT0040;DT nhà hàng Biệt Thự Đảo","DA0807;BĐX CT07A",null,null,null,null,"350_;Nợ dài hạn khác"]
[null,null,null,null,null,null,"45_;Chi phí tiền nước","DT0041;DT TMDV/ Đỗ xe ô tô vãng lai","DT0041;DT TMDV/ Đỗ xe ô tô vãng lai","DA0901;SO1 - Solforest",null,null,null,null,"411_;Vốn đầu tư của chủ sở hữu"]
[null,null,null,null,null,null,"32_;Chi phí vận hành chung","DT0042;DT quản lý vận hành charge CĐT","DT0042;DT quản lý vận hành charge CĐT","DA0902;SO2- Solforest",null,null,null,null,"412_;Thặng dư vốn cổ phần"]
[null,null,null,null,null,null,"80_;Chi phí trang trí","DT0043;DT TMDV/Cho thuê trạm sạc VF","DT0043;DT TMDV/Cho thuê trạm sạc VF","DA0903;Chung Sol Forest",null,null,null,null,"416_;Chênh lệch đánh giá lại tài sản"]
[null,null,null,null,null,null,"70_;CP Khấu hao TSCĐ","DT0044;DT Phí quản lý thu hộ CĐT","DT0044;DT Phí quản lý thu hộ CĐT","DA1007;Chung Biệt Thự Đảo",null,null,null,null,"421_;Lợi nhuận sau thuế chưa phân phối"]
[null,null,null,null,null,null,"12_;Chi phí hoa hồng môi giới","DT0045;DT trích từ quỹ kết dư các BQT","DT0045;DT trích từ quỹ kết dư các BQT","DA1008;CLB biệt thự đảo 1",null,null,null,null,"430_;Nguồn vốn khác"]
[null,null,null,null,null,null,"34_;Chi phí sự kiện","DT0046;DT hoa hồng trạm sạc VF,DOP,,,","DT0046;DT hoa hồng trạm sạc VF,DOP,,,","DA1010;Nhà hàng Biệt Thự Đảo",null,null,null,null,"621_;Chi phí NPL trực tiếp"]
[null,null,null,null,null,null,null,"DT0047;Doanh thu cho thuê xe bus","DT0047;Doanh thu cho thuê xe bus","DA1101;Tòa Westbay A",null,null,null,null,"622_;Chi phí NC trực tiếp"]
[null,null,null,null,null,null,null,"DT0048;Doanh thu nước khoáng Onsen","DT0048;Doanh thu nước khoáng Onsen","DA1102;Tòa Westbay B",null,null,null,null,"627_;Chi phí sản xuất chung"]
[null,null,null,null,null,null,null,"DT0049;Thu hộ thù lao Ban Quản Trị","DT0049;Thu hộ thù lao Ban Quản Trị","DA1103;Tòa Westbay C"]
[null,null,null,null,null,null,null,"DT0050;Các khoản thu hộ khác cho BQT","DT0050;Các khoản thu hộ khác cho BQT","DA1104;Tòa Westbay D"]
[null,null,null,null,null,null,null,"DT0051;Chia sẻ DT cho thuê mặt bằng","DT0051;Chia sẻ DT cho thuê mặt bằng","DA1105;Bãi đỗ xe Westbay"]
[null,null,null,null,null,null,null,"DT0052;Thu nhập quỹ kết dư","DT0052;Thu nhập quỹ kết dư","DA1107;CLB Westbay"]
[null,null,null,null,null,null,null,"DT0053;DT vận hành diện tích chung","DT0053;DT vận hành diện tích chung","DA1108;Chung Westbay"]
[null,null,null,null,null,null,null,"DT0054;DT cho thuê mặt bằng thu hộBQT","DT0054;DT cho thuê mặt bằng thu hộBQT","DA1109;Leasing Westbay"]
[null,null,null,null,null,null,null,"DT0055;DT tư vấn quản lý vận hành KĐT","DT0055;DT tư vấn quản lý vận hành KĐT","DA1203;Chung Grand Marina"]
[null,null,null,null,null,null,null,"DT0056;DT cho thuê VT đặt tủ gửi đồ","DT0056;DT cho thuê VT đặt tủ gửi đồ","DA1303;Chung Marina Arc"]
[null,null,null,null,null,null,null,"DT0057;DT CLB BTĐ/Vé bơi,gym,sauna","DT0057;DT CLB BTĐ/Vé bơi,gym,sauna","DA1403;CLB Marina Arc"]
[null,null,null,null,null,null,null,"DT0058;DT CLB BTĐ/Vé tenis","DT0058;DT CLB BTĐ/Vé tenis","DA1404;Chung CT07"]
[null,null,null,null,null,null,null,"CP0001;Chi phí lãi vay","CP0001;Chi phí lãi vay","DA1503;CLB Thủy Nguyên"]
[null,null,null,null,null,null,null,"CP0002;Chi phí phạt","CP0002;Chi phí phạt","DA1504;Chung Thủy Nguyên"]
[null,null,null,null,null,null,null,"CP0003;Lãi tiền gửi","CP0003;Lãi tiền gửi","DA1608;Chung Park 1, 2 Sky 1"]
[null,null,null,null,null,null,null,"CP0004;Phí cà thẻ","CP0004;Phí cà thẻ","DA1610;Chung Lake 1, 2"]
[null,null,null,null,null,null,null,"CP0005;Phí kiểm toán","CP0005;Phí kiểm toán","DA1612;CLB Lake"]
[null,null,null,null,null,null,null,"CP0006;Phí ngân hàng","CP0006;Phí ngân hàng","DA1613;CLB Sky 2,3"]
[null,null,null,null,null,null,null,"CP0007;Phí, lệ phí các loại","CP0007;Phí, lệ phí các loại","DA1615;BĐX Sky 2,3"]
[null,null,null,null,null,null,null,"CP0008;Chi phí thuế/ Thuế TNCN","CP0008;Chi phí thuế/ Thuế TNCN","DA1616;BĐX Lake 1,2"]
[null,null,null,null,null,null,null,"CP0009;Chi phí thuế/Thuế đất","CP0009;Chi phí thuế/Thuế đất","DA1617;BĐX Park 1, 2 Sky 1"]
[null,null,null,null,null,null,null,"CP0010;Chi phí thuế/Thuế nhà thầu","CP0010;Chi phí thuế/Thuế nhà thầu","DA1618;CLB Grand Park"]
[null,null,null,null,null,null,null,"CP0011;CP thuế/Thuế TN môi trường","CP0011;CP thuế/Thuế TN môi trường","DA1619;Leasing AQB-A"]
[null,null,null,null,null,null,null,"CP0012;CP thuế/Thuế TNDN -Tạm nộp 20%","CP0012;CP thuế/Thuế TNDN -Tạm nộp 20%","DA1620;Leasing AQB-B"]
[null,null,null,null,null,null,null,"CP0013;Chi phí thuế/Thuế TNDN","CP0013;Chi phí thuế/Thuế TNDN","DA1702;Chung Thảo Nguyên"]
[null,null,null,null,null,null,null,"CP0014;Chi phí thuế/Thuế VAT","CP0014;Chi phí thuế/Thuế VAT","DA1704;CLB Thảo Nguyên"]
[null,null,null,null,null,null,null,"CP0015;CP đào tạo trực tiếp,gián tiếp","CP0015;CP đào tạo trực tiếp,gián tiếp","DA1705;Trạm XLNT số 3"]
[null,null,null,null,null,null,null,"CP0016;CP đào tạo, tuyển dụng  khác","CP0016;CP đào tạo, tuyển dụng  khác","DA1803;CLB Mimosa"]
[null,null,null,null,null,null,null,"CP0017;CP thuê ngoài dịch vụ đào tạo","CP0017;CP thuê ngoài dịch vụ đào tạo","DA1804;Chung Mimosa"]
[null,null,null,null,null,null,null,"CP0018;Chi phí văn hóa doanh nghiệp","CP0018;Chi phí văn hóa doanh nghiệp","DA1901;CLB Spring Valley"]
[null,null,null,null,null,null,null,"CP0019;Chi phí lương/ BHXH, YT,TN","CP0019;Chi phí lương/ BHXH, YT,TN","DA1902;Chung Spring Valley"]
[null,null,null,null,null,null,null,"CP0020;Chi phí lương/ Lương chính","CP0020;Chi phí lương/ Lương chính","DA2003;Chung Marina"]
[null,null,null,null,null,null,null,"CP0021;CP lương/ Lương hiệu quả CV","CP0021;CP lương/ Lương hiệu quả CV","DA2102;Chung Thủy Trúc"]
[null,null,null,null,null,null,null,"CP0022;CP lương/ Lương kinh doanh","CP0022;CP lương/ Lương kinh doanh","DA2202;Chung Swanlake"]
[null,null,null,null,null,null,null,"CP0023;Chi phí lương/ Lương ngoài giờ","CP0023;Chi phí lương/ Lương ngoài giờ","DA2301;Nhà phố Vịnh Đảo (TT-PT1)"]
[null,null,null,null,null,null,null,"CP0024;Chi phí lương/ Phụ cấp ăn ca","CP0024;Chi phí lương/ Phụ cấp ăn ca","DA2302;Nhà phố Vịnh Đảo (TT-PT2)"]
[null,null,null,null,null,null,null,"CP0025;Chi phí lương/ Phụ cấp đi lại","CP0025;Chi phí lương/ Phụ cấp đi lại","DA2303;Nhà phố Vịnh Đảo (TT-PT3)"]
[null,null,null,null,null,null,null,"CP0026;Chi phí lương/ Phụ cấp khác","CP0026;Chi phí lương/ Phụ cấp khác","DA2304;Chung Nhà Phố Vịnh Đảo"]
[null,null,null,null,null,null,null,"CP0027;CP lương/ Phụ cấp ngoại hình","CP0027;CP lương/ Phụ cấp ngoại hình","DA2305;Nhà phố Vịnh Đảo (TT-PT4)"]
[null,null,null,null,null,null,null,"CP0028;CP lương/ Phụ cấp ngoại ngữ","CP0028;CP lương/ Phụ cấp ngoại ngữ","DA2306;Nhà phố Vịnh Đảo (SH-PT2)"]
[null,null,null,null,null,null,null,"CP0029;CP lương/ Phụ cấp tay nghề","CP0029;CP lương/ Phụ cấp tay nghề","DA2307;Trạm XLNT số 2"]
[null,null,null,null,null,null,null,"CP0030;CP lương/ Phụ cấp trách nhiệm","CP0030;CP lương/ Phụ cấp trách nhiệm","DA2308;CLB Solforest"]
[null,null,null,null,null,null,null,"CP0031;Chi phí lương/ Quỹ công đoàn","CP0031;Chi phí lương/ Quỹ công đoàn","DA2309;Chung Thủy Tiên"]
[null,null,null,null,null,null,null,"CP0032;Chi phí lương/ Tháng 13","CP0032;Chi phí lương/ Tháng 13","DA2310;Chung Haven Park"]
[null,null,null,null,null,null,null,"CP0033;Chi phí lương/ Thưởng","CP0033;Chi phí lương/ Thưởng","DA2311;BĐX Thủy Tiên"]
[null,null,null,null,null,null,null,"CP0034;CP phúc lợi/ Bảo hiểm sức khỏe","CP0034;CP phúc lợi/ Bảo hiểm sức khỏe","DA2312;Chung Sky 2, 3"]
[null,null,null,null,null,null,null,"CP0035;Chi phí phúc lợi khác","CP0035;Chi phí phúc lợi khác","DA2314;Chung Westbay ABC"]
[null,null,null,null,null,null,null,"CP0036;CP phúc lợi/ Cá nhân (Hiếu hỉ)","CP0036;CP phúc lợi/ Cá nhân (Hiếu hỉ)","DA2316;Tòa R3 - CT21,22"]
[null,null,null,null,null,null,null,"CP0037;CP phúc lợi/ Sinh hoạt tập thể","CP0037;CP phúc lợi/ Sinh hoạt tập thể","DA2317;Tòa R2 CT21,22"]
[null,null,null,null,null,null,null,"CP0038;Chi phí phúc lợi/ Teambuilding","CP0038;Chi phí phúc lợi/ Teambuilding","DA2318;Tòa R1  CT21,22"]
[null,null,null,null,null,null,null,"CP0039;CP CCDC, thiết bị văn phòng","CP0039;CP CCDC, thiết bị văn phòng","DA2319;Tòa L1 CT21,22"]
[null,null,null,null,null,null,null,"CP0040;Chi phí chống dịch Covid","CP0040;Chi phí chống dịch Covid","DA2320;Tòa L2  CT21,22"]
[null,null,null,null,null,null,null,"CP0041;Chi phí chuyển phát nhanh","CP0041;Chi phí chuyển phát nhanh","DA2321;Tòa B1 CT21,22"]
[null,null,null,null,null,null,null,"CP0042;Chi phí công tác","CP0042;Chi phí công tác","DA2322;Tòa B2 CT21,22"]
[null,null,null,null,null,null,null,"CP0043;Chi phí dầu xe","CP0043;Chi phí dầu xe","DA2323;Tòa B3 CT21,22"]
[null,null,null,null,null,null,null,"CP0044;Chi phí dầu, nhớt thay thế","CP0044;Chi phí dầu, nhớt thay thế","DA2324;Xe bus 29B-079.09"]
[null,null,null,null,null,null,null,"CP0045;Chi phí dịch vụ mua ngoài khác","CP0045;Chi phí dịch vụ mua ngoài khác","DA2325;Xe bus 29B-079.19"]
[null,null,null,null,null,null,null,"CP0046;CP điện thoại, Internet CĐ","CP0046;CP điện thoại, Internet CĐ","DA2326;Xe bus 29B-079.52"]
[null,null,null,null,null,null,null,"CP0047;Chi phí diệt côn trùng, chuột","CP0047;Chi phí diệt côn trùng, chuột","DA2327;Xe bus 29B-079.25"]
[null,null,null,null,null,null,null,"CP0048;Chi phí đồ dùng trên xe","CP0048;Chi phí đồ dùng trên xe","DA2328;Xe bus 29B-078.91"]
[null,null,null,null,null,null,null,"CP0049;Chi phí tiếp khách","CP0049;Chi phí tiếp khách","DA2329;Xe bus 29B-059.63"]
[null,null,null,null,null,null,null,"CP0050;Chi phí đồng phục","CP0050;Chi phí đồng phục","DA2330;Xe bus 29B-069.42"]
[null,null,null,null,null,null,null,"CP0051;Chi phí giá vốn dịch vụ","CP0051;Chi phí giá vốn dịch vụ","DA2331;Xe bus 29B-068.71"]
[null,null,null,null,null,null,null,"CP0052;Chi phí giá vốn đồ ăn","CP0052;Chi phí giá vốn đồ ăn","DA2332;Xe bus 29B-070.33"]
[null,null,null,null,null,null,null,"CP0053;Chi phí giá vốn đồ uống","CP0053;Chi phí giá vốn đồ uống","DA2333;Xe bus 29B-131.03"]
[null,null,null,null,null,null,null,"CP0054;Chi phí giá vốn hàng hóa","CP0054;Chi phí giá vốn hàng hóa","DA2334;Xe bus 29B-130.90"]
[null,null,null,null,null,null,null,"CP0055;Chi phí giặt là","CP0055;Chi phí giặt là","DA2335;Xe bus 29B-102.71"]
[null,null,null,null,null,null,null,"CP0056;Chi phí GPS","CP0056;Chi phí GPS","DA2336;Xe bus 29B-131.06"]
[null,null,null,null,null,null,null,"CP0057;Chi phí hóa chất bể bơi","CP0057;Chi phí hóa chất bể bơi","DA2337;Xe bus 29B-130.93"]
[null,null,null,null,null,null,null,"CP0058;Chi phí hút bể tách mỡ","CP0058;Chi phí hút bể tách mỡ","DA2338;Xe bus 29B-134.56"]
[null,null,null,null,null,null,null,"CP0059;Chi phí in ấn, văn phòng phẩm","CP0059;Chi phí in ấn, văn phòng phẩm","DA2339;Xe bus 29B-133.96"]
[null,null,null,null,null,null,null,"CP0060;CP kiểm định chất lượng nước","CP0060;CP kiểm định chất lượng nước","DA2340;Xe bus 29B-133.45"]
[null,null,null,null,null,null,null,"CP0061;Chi phí kiểm định công tơ","CP0061;Chi phí kiểm định công tơ","DA2341;Xe bus 29B-134.42"]
[null,null,null,null,null,null,null,"CP0062;CP kiểm định HT nước thải","CP0062;CP kiểm định HT nước thải","DA2342;Xe bus 29B-134.76"]
[null,null,null,null,null,null,null,"CP0063;Chi phí kiểm định nhà máy nước","CP0063;Chi phí kiểm định nhà máy nước","DA2343;Xe bus 29B-167.96"]
[null,null,null,null,null,null,null,"CP0064;Chi phí mua bảo hiểm rủi ro","CP0064;Chi phí mua bảo hiểm rủi ro","DA2344;Xe bus 29B-168.82"]
[null,null,null,null,null,null,null,"CP0065;Chi phí nạo vét hố ga","CP0065;Chi phí nạo vét hố ga","DA2345;Xe bus 29B-167.66"]
[null,null,null,null,null,null,null,"CP0066;CP phần mềm, bảo trì phần mềm","CP0066;CP phần mềm, bảo trì phần mềm","DA2346;Xe bus 29B-168.20"]
[null,null,null,null,null,null,null,"CP0067;Chi phí photo","CP0067;Chi phí photo","DA2347;Xe bus 29B-165.82"]
[null,null,null,null,null,null,null,"CP0068;Chi phí rửa xe, bảo dưỡng xe","CP0068;Chi phí rửa xe, bảo dưỡng xe","DA2348;Xe bus 29B-174.91"]
[null,null,null,null,null,null,null,"CP0069;Chi phí sạc điện","CP0069;Chi phí sạc điện","DA2349;Xe bus 29B-174.81"]
[null,null,null,null,null,null,null,"CP0070;Chi phí SMS","CP0070;Chi phí SMS","DA2350;Xe bus 29B-174.66"]
[null,null,null,null,null,null,null,"CP0071;Chi phí sửa chữa lớn TSCĐ","CP0071;Chi phí sửa chữa lớn TSCĐ","DA2351;Xe bus 29B-174.10"]
[null,null,null,null,null,null,null,"CP0072;CP SChữa, BDưỡng HT chống sét","CP0072;CP SChữa, BDưỡng HT chống sét","DA2352;Xe bus 29B-174.62"]
[null,null,null,null,null,null,null,"CP0073;CP SChữa, B.Dưỡng HT cứu hỏa","CP0073;CP SChữa, B.Dưỡng HT cứu hỏa","DA2353;Xe bus 29B-400.19"]
[null,null,null,null,null,null,null,"CP0074;CP SChữa, B.Dưỡng HT thang máy","CP0074;CP SChữa, B.Dưỡng HT thang máy","DA2354;Xe bus 29B-400.25"]
[null,null,null,null,null,null,null,"CP0075;CP Schữa ,BDưỡng HT thoát nước","CP0075;CP Schữa ,BDưỡng HT thoát nước","DA2355;Xe bus 29B-003.12"]
[null,null,null,null,null,null,null,"CP0076;CP sửa chữa, bảo dưỡng khác","CP0076;CP sửa chữa, bảo dưỡng khác","DA2356;Xe bus 29B-400.52"]
[null,null,null,null,null,null,null,"CP0077;CP sửa chữa, bảo dưỡng xe Bus","CP0077;CP sửa chữa, bảo dưỡng xe Bus","DA2357;Xe bus 29B-403.44"]
[null,null,null,null,null,null,null,"CP0078;Chi phí thẻ Bus","CP0078;Chi phí thẻ Bus","DA2358;Xe bus 29B-403.62"]
[null,null,null,null,null,null,null,"CP0079;Chi phí thẻ cư dân","CP0079;Chi phí thẻ cư dân","DA2359;Xe bus 29B-409.65"]
[null,null,null,null,null,null,null,"CP0080;Chi phí thu gom rác thải","CP0080;Chi phí thu gom rác thải","DA2360;Xe bus 29B-408.78"]
[null,null,null,null,null,null,null,"CP0081;CP thuê ngoài dịch vụ an ninh","CP0081;CP thuê ngoài dịch vụ an ninh","DA2361;Xe bus 29B-409.46"]
[null,null,null,null,null,null,null,"CP0082;CP thuê ngoài DV bãi giữ xe","CP0082;CP thuê ngoài DV bãi giữ xe","DA2362;Xe bus 29B-409.54"]
[null,null,null,null,null,null,null,"CP0083;CP thuê ngoài DV chợ cuối tuần","CP0083;CP thuê ngoài DV chợ cuối tuần","DA2363;Xe bus 29B-400.32"]
[null,null,null,null,null,null,null,"CP0084;CP thuê ngoài DV vệ sinh","CP0084;CP thuê ngoài DV vệ sinh","DA2364;Xe bus 29B-069.41"]
[null,null,null,null,null,null,null,"CP0085;CP thuê ngoài GV dạy bơi","CP0085;CP thuê ngoài GV dạy bơi","DA2365;Xe bus 29B-414.13"]
[null,null,null,null,null,null,null,"CP0086;CP thuê ngoài giáo viên PT","CP0086;CP thuê ngoài giáo viên PT","DA2366;Xe bus 29B-414.37"]
[null,null,null,null,null,null,null,"CP0087;Chi phí thuê tài sản","CP0087;Chi phí thuê tài sản","DA2367;Xe bus 29B-414.80"]
[null,null,null,null,null,null,null,"CP0088;Chi phí tiền điện","CP0088;Chi phí tiền điện","DA2368;Xe bus 29B-414.56"]
[null,null,null,null,null,null,null,"CP0089;Chi phí tiền nước","CP0089;Chi phí tiền nước","DA2369;Xe bus 29B-414.71"]
[null,null,null,null,null,null,null,"CP0090;Chi phí tiền nước uống","CP0090;Chi phí tiền nước uống","DA2370;Xe tải Thaco 29C-895.77"]
[null,null,null,null,null,null,null,"CP0091;Chi phí vận chuyển","CP0091;Chi phí vận chuyển","DA2371;Xe quét hút Isuzu 89C-258.09"]
[null,null,null,null,null,null,null,"CP0092;Chi phí vận hành khác","CP0092;Chi phí vận hành khác","DA2372;Xe xi tec Foton 29H-139.56"]
[null,null,null,null,null,null,null,"CP0093;CP vận hành máy PĐiện dự phòng","CP0093;CP vận hành máy PĐiện dự phòng","DA2373;Mori Onsen"]
[null,null,null,null,null,null,null,"CP0094;Chi phí vận hành trạm biến áp","CP0094;Chi phí vận hành trạm biến áp","DA2374;BĐX CT07"]
[null,null,null,null,null,null,null,"CP0095;Chi phí vật tư, vật liệu","CP0095;Chi phí vật tư, vật liệu","DA2375;BĐX Haven Park"]
[null,null,null,null,null,null,null,"CP0096;Chi phí vệ sinh mái chung cư","CP0096;Chi phí vệ sinh mái chung cư","DA23777;CLB Havenpark"]
[null,null,null,null,null,null,null,"CP0097;Chi phí Wifi 4G","CP0097;Chi phí Wifi 4G","DA23778;Onsen căn hộ"]
[null,null,null,null,null,null,null,"CP0098;Chi phí xăng xe","CP0098;Chi phí xăng xe","DA2379;Đảo 8"]
[null,null,null,null,null,null,null,"CP0099;Chi phí xử lý chất thải","CP0099;Chi phí xử lý chất thải","DA2380;Công viên Vườn Nhật"]
[null,null,null,null,null,null,null,"CP0100;Chi phí y tế bể bơi","CP0100;Chi phí y tế bể bơi","DA2381;Eco Central Park"]
[null,null,null,null,null,null,null,"CP0101;Công tác phí","CP0101;Công tác phí","DA2382;Eco Retreat"]
[null,null,null,null,null,null,null,"CP0102;Chi phí hóa chất nhà máy nước","CP0102;Chi phí hóa chất nhà máy nước","DA2383;Chung Sky Forest"]
[null,null,null,null,null,null,null,"CP0103;Chi phí hoa tươi","CP0103;Chi phí hoa tươi","DA2384;Omni"]
[null,null,null,null,null,null,null,"CP0104;CP Khấu hao TSCĐ","CP0104;CP Khấu hao TSCĐ","DA2385;BĐX Solforest"]
[null,null,null,null,null,null,null,"CP0105;Chi phí kiểm định thang máy","CP0105;Chi phí kiểm định thang máy","DA2386;Chung CT07A"]
[null,null,null,null,null,null,null,"CP0106;Phí loại trừ","CP0106;Phí loại trừ","DA2387;BĐX CT21,22"]
[null,null,null,null,null,null,null,"CP0107;CP thuê ngoài DV vận chuyển","CP0107;CP thuê ngoài DV vận chuyển","DA2388;Thủy Tiên 1"]
[null,null,null,null,null,null,null,"CP0108;CP thuê ngoài DV lắp đặt","CP0108;CP thuê ngoài DV lắp đặt","DA2389;Thủy Tiên 2"]
[null,null,null,null,null,null,null,"CP0109;Phí chuyển tiền - Onepay","CP0109;Phí chuyển tiền - Onepay","DA2390;Văn phòng BQL Onsen"]
[null,null,null,null,null,null,null,"CP0110;CP bánh kẹo, hoa quả","CP0110;CP bánh kẹo, hoa quả","DA2392;CLB Skyforest"]
[null,null,null,null,null,null,null,"CP0111;CP vận hành BQT- RC","CP0111;CP vận hành BQT- RC"]
[null,null,null,null,null,null,null,"CP0112;CP hút bể phốt","CP0112;CP hút bể phốt"]
[null,null,null,null,null,null,null,"CP0113;CP DV hóa đơn điện tử,PT,Vé xe","CP0113;CP DV hóa đơn điện tử,PT,Vé xe"]
[null,null,null,null,null,null,null,"CP0114;CP Thù lao Ban quản trị","CP0114;CP Thù lao Ban quản trị"]
[null,null,null,null,null,null,null,"CP0115;Chi phí hoa hồng môi giới","CP0115;Chi phí hoa hồng môi giới"]
[null,null,null,null,null,null,null,"CP0116;CP quỹ Phòng chống thiên tai","CP0116;CP quỹ Phòng chống thiên tai"]
[null,null,null,null,null,null,null,"CP0117;Chi phí đăng kiểm xe bus","CP0117;Chi phí đăng kiểm xe bus"]
[null,null,null,null,null,null,null,"CP0118;Chi phí phát triển cộng đồng","CP0118;Chi phí phát triển cộng đồng"]
[null,null,null,null,null,null,null,"CP0119;CP tổ chức hội nghị cư dân","CP0119;CP tổ chức hội nghị cư dân"]
[null,null,null,null,null,null,null,"CP0120;CP HC-NS CĐT phân bổ cho Ecopm","CP0120;CP HC-NS CĐT phân bổ cho Ecopm"]
[null,null,null,null,null,null,null,"CP0121;CP quản lý vận hành dự án","CP0121;CP quản lý vận hành dự án"]
[null,null,null,null,null,null,null,"CP0122;CP trích từ quỹ kết dư các BQT","CP0122;CP trích từ quỹ kết dư các BQT"]
[null,null,null,null,null,null,null,"CP0123;Chi phí phạt vi phạm về thuế","CP0123;Chi phí phạt vi phạm về thuế"]
[null,null,null,null,null,null,null,"CP0124;CP quan trắc phân tích MT","CP0124;CP quan trắc phân tích MT"]
[null,null,null,null,null,null,null,"CP0125;CP hỗ trợ giặt là và service","CP0125;CP hỗ trợ giặt là và service"]
[null,null,null,null,null,null,null,"CP0126;Chi phí tư vấn dự án","CP0126;Chi phí tư vấn dự án"]
[null,null,null,null,null,null,null,"CP0127;CP trích lập quỹ khen thưởng","CP0127;CP trích lập quỹ khen thưởng"]
[null,null,null,null,null,null,null,"CP0128;CP loại - Nợ phải thu khó đòi","CP0128;CP loại - Nợ phải thu khó đòi"]
[null,null,null,null,null,null,null,null,"CT01;Số người lao động"]
[null,null,null,null,null,null,null,null,"CT02;Diện tích quản lý"]
[null,null,null,null,null,null,null,null,"CT03;Diện tích tính phí quản lý"]
[null,null,null,null,null,null,null,null,"CT04;Số căn quản lý"]
[null,null,null,null,null,null,null,null,"CT05;Số lot đỗ xe ô tô"]
[null,null,null,null,null,null,null,null,"CT06;Số điểm đỗ xe"]
[null,null,null,null,null,null,null,null,"CT07;Số bể bơi + phòng gym"]
[null,null,null,null,null,null,null,null,"CT08;Số công viên"]
[null,null,null,null,null,null,null,null,"CT09;Số xe bus"]
[null,null,null,null,null,null,null,null,"CT10;Diện tích thương mại cho thuê"]
[null,null,null,null,null,null,null,null,"CT11;Số khu quản lý"]

{"sheet":"✗","index":1,"n_rows":15,"n_cols":2,"rows_kept":15,"cut":false,"hidden":true,"merged":[]}
[null,"Mã trùng"]
["Site",{"$f":"IFERROR(TRANSPOSE(_xlfn.LET(_xlpm.i,L_SI[Site],_xlfn._xlws.FILTER(_xlfn.UNIQUE(_xlpm.i),COUNTIFS(_xlpm.i,_xlfn.UNIQUE(_xlpm.i))>1))),0)","v":0}]
["Fund center",{"$f":"IFERROR(TRANSPOSE(_xlfn.LET(_xlpm.i,L_FC[Fund center],_xlfn._xlws.FILTER(_xlfn.UNIQUE(_xlpm.i),COUNTIFS(_xlpm.i,_xlfn.UNIQUE(_xlpm.i))>1))),0)","v":0}]
["Profit center",{"$f":"IFERROR(TRANSPOSE(_xlfn.LET(_xlpm.i,L_PC[Profit center],_xlfn._xlws.FILTER(_xlfn.UNIQUE(_xlpm.i),COUNTIFS(_xlpm.i,_xlfn.UNIQUE(_xlpm.i))>1))),0)","v":0}]
["{Cost center}",{"$f":"IFERROR(TRANSPOSE(_xlfn.LET(_xlpm.i,L_CC[Cost center],_xlfn._xlws.FILTER(_xlfn.UNIQUE(_xlpm.i),COUNTIFS(_xlpm.i,_xlfn.UNIQUE(_xlpm.i))>1))),0)","v":0}]
["MIS code",{"$f":"IFERROR(TRANSPOSE(_xlfn.LET(_xlpm.i,L_Mis[MIS code],_xlfn._xlws.FILTER(_xlfn.UNIQUE(_xlpm.i),COUNTIFS(_xlpm.i,_xlfn.UNIQUE(_xlpm.i))>1))),0)","v":0}]
["{Commit}",{"$f":"IFERROR(TRANSPOSE(_xlfn.LET(_xlpm.i,L_CI[CI code],_xlfn._xlws.FILTER(_xlfn.UNIQUE(_xlpm.i),COUNTIFS(_xlpm.i,_xlfn.UNIQUE(_xlpm.i))>1))),0)","v":0}]
["{Object}",{"$f":"IFERROR(TRANSPOSE(_xlfn.LET(_xlpm.i,L_OJ[Object],_xlfn._xlws.FILTER(_xlfn.UNIQUE(_xlpm.i),COUNTIFS(_xlpm.i,_xlfn.UNIQUE(_xlpm.i))>1))),0)","v":0}]
["Asset",{"$f":"IFERROR(TRANSPOSE(_xlfn.LET(_xlpm.i,L_AS[Asset type],_xlfn._xlws.FILTER(_xlfn.UNIQUE(_xlpm.i),COUNTIFS(_xlpm.i,_xlfn.UNIQUE(_xlpm.i))>1))),0)","v":0}]
["Statistic",{"$f":"IFERROR(TRANSPOSE(_xlfn.LET(_xlpm.i,L_ST[Statistics],_xlfn._xlws.FILTER(_xlfn.UNIQUE(_xlpm.i),COUNTIFS(_xlpm.i,_xlfn.UNIQUE(_xlpm.i))>1))),0)","v":0}]
["Financial",{"$f":"IFERROR(TRANSPOSE(_xlfn.LET(_xlpm.i,L_FS[FS code],_xlfn._xlws.FILTER(_xlfn.UNIQUE(_xlpm.i),COUNTIFS(_xlpm.i,_xlfn.UNIQUE(_xlpm.i))>1))),0)","v":0}]
["Trust",{"$f":"IFERROR(TRANSPOSE(_xlfn.LET(_xlpm.i,L_TR[Trust],_xlfn._xlws.FILTER(_xlfn.UNIQUE(_xlpm.i),COUNTIFS(_xlpm.i,_xlfn.UNIQUE(_xlpm.i))>1))),0)","v":0}]
["Sub",{"$f":"IFERROR(TRANSPOSE(_xlfn.LET(_xlpm.i,L_SUB[Sub code],_xlfn._xlws.FILTER(_xlfn.UNIQUE(_xlpm.i),COUNTIFS(_xlpm.i,_xlfn.UNIQUE(_xlpm.i))>1))),0)","v":0}]
["Fund",{"$f":"IFERROR(TRANSPOSE(_xlfn.LET(_xlpm.i,L_FC[Fund center],_xlfn._xlws.FILTER(_xlfn.UNIQUE(_xlpm.i),COUNTIFS(_xlpm.i,_xlfn.UNIQUE(_xlpm.i))>1))),0)","v":0}]
["Other"]

{"sheet":"Site","index":2,"n_rows":32,"n_cols":7,"rows_kept":32,"cut":false,"hidden":false,"merged":[]}
[]
["𝓔𝓬𝓸𝓹𝓪𝓻𝓴",null,"SITE (CƠ SỞ KINH DOANH)",null,"Là địa điểm cụ thể nơi doanh nghiệp hoạt động, có thể là nhà máy, cửa hàng, văn phòng hoặc chi nhánh, depot"]
["𝓜𝓪𝓷𝓪𝓰𝓮𝓶𝓮𝓷𝓽"]
[]
[null,"_","Site","Name","Properties","#","_"]
["Site",null,"HO","Quản lý chung",null,1]
[null,null,"PQL","Phí quản lý",null,2]
["Fund center",null,"BĐX","Bãi đỗ xe",null,3]
[null,null,"Bus","Xe bus",null,4]
["Profit center",null,"CLB","Câu lạc bộ",null,5]
[null,null,"Leasing","Cho thuê",null,6]
["Cost center",null,"QLTC","Quản lý thi công",null,7]
[null,null,"QBT","Quỹ bảo trì",null,8]
["MIS code",null,"Khác","Khác",null,9]
[]
["Commit"]
[]
["Object"]
[]
["Asset"]
[]
["Statistic"]
[]
["Financial"]
[]
["Trust"]
[]
["Sub"]
[]
["Fund"]
[]
["Other"]

{"sheet":"Fund center","index":3,"n_rows":32,"n_cols":8,"rows_kept":32,"cut":false,"hidden":false,"merged":[]}
[{"$f":"Range2(L_FC[Site])","v":"E6:E24"}]
[{"$f":"Site!A2","v":"𝓔𝓬𝓸𝓹𝓪𝓻𝓴"},null,"FUND CENTER (KHỐI LẬP NGÂN SÁCH)",null,"Trong các công ty có quy mô lớn, việc chia thành các khối ngân sách sẽ giúp việc điều phối lập và quản lý ngân sách hiệu quả hơn. Fund center mang ý nghĩa phân công, tổ chức lập và quản lý ngân sách."]
[{"$f":"Site!A3","v":"𝓜𝓪𝓷𝓪𝓰𝓮𝓶𝓮𝓷𝓽"},null,null,null,"Thường hay thấy nhất là ở khối HO chia các nhóm bộ phận chuyên môn thành các khối, trong khi ở các cơ sở vận hành thì cơ sở đó cũng đồng thời là một khối. "]
[null,null,null,null,"⏬"]
[null,"_","Fund center","FC name","Site","Properties","#","_"]
["Site",null,"ECOPM001","Ban giám đốc",null,null,1]
[null,null,"ECOPM002","Kế toán",null,null,2]
["Fund center",null,"ECOPM003","Chăm sóc cư dân",null,null,3]
[null,null,"ECOPM004","Kỹ thuật",null,null,4]
["Profit center",null,"ECOPM005","An ninh",null,null,5]
[null,null,"ECOPM006","MTĐT",null,null,6]
["Cost center",null,"ECOPM007","Ecobus",null,null,7]
[null,null,"ECOPM008","CLB tiện ích",null,null,8]
["MIS code",null,"ECOPM012","QLTC",null,null,9]
[null,null,"ECOPM015","Bàn giao",null,null,10]
["Commit",null,"ECOPM016","Leasing",null,null,11]
[null,null,"ECOPM054","PCCC & CNCH",null,null,12]
["Object",null,"ECOPM055","Khối hỗ trợ",null,null,13]
[null,null,"ECOPM082","Nhà hàng",null,null,14]
["Asset",null,"ECOPM100","BQL GĐ1",null,null,15]
[null,null,"ECOPM200","BQL GĐ2",null,null,16]
["Statistic",null,"ECOPM300","BQL GĐ3",null,null,17]
[null,null,"ECOPM500","Ban quản trị",null,null,18]
["Financial",null,"ECOPM800","BQL Onsen",null,null,19]
[]
["Trust"]
[]
["Sub"]
[]
["Fund"]
[]
["Other"]

{"sheet":"Profit center","index":4,"n_rows":32,"n_cols":8,"rows_kept":32,"cut":false,"hidden":false,"merged":[]}
[{"$f":"Range2(L_PC[Site])","v":"E6:E24"}]
[{"$f":"Site!A2","v":"𝓔𝓬𝓸𝓹𝓪𝓻𝓴"},null,"PROFIT CENTER (TRUNG TÂM LỢI NHUẬN)",null,null,"Đơn vị trong doanh nghiệp có trách nhiệm tạo ra doanh thu và lợi nhuận, có ranh giới về doanh thu- chi phí có thể phân tách được, để quản trị và phân tích kinh doanh. Profit center được hình thành bằng cách nhóm các cost-center"]
[{"$f":"Site!A3","v":"𝓜𝓪𝓷𝓪𝓰𝓮𝓶𝓮𝓷𝓽"},null,null,null,null,"Profit center là mã để tổng hợp ngân sách theo chiều bộ phận, không phải mã để lập ngân sách."]
[null,null,null,null,"⏬"]
[null,"_","Profit center","PC name","Site","Properties","#","_"]
["Site",null,"ECOPM001","Ban giám đốc",null,null,1]
[null,null,"ECOPM002","Kế toán",null,null,2]
["Fund center",null,"ECOPM003","Chăm sóc cư dân",null,null,3]
[null,null,"ECOPM004","Kỹ thuật",null,null,4]
["Profit center",null,"ECOPM005","An ninh",null,null,5]
[null,null,"ECOPM006","MTĐT",null,null,6]
["Cost center",null,"ECOPM007","Ecobus",null,null,7]
[null,null,"ECOPM008","CLB tiện ích",null,null,8]
["MIS code",null,"ECOPM012","QLTC",null,null,9]
[null,null,"ECOPM015","Bàn giao",null,null,10]
["Commit",null,"ECOPM016","Leasing",null,null,11]
[null,null,"ECOPM054","PCCC & CNCH",null,null,12]
["Object",null,"ECOPM055","Khối hỗ trợ",null,null,13]
[null,null,"ECOPM082","Nhà hàng",null,null,14]
["Asset",null,"ECOPM100","BQL GĐ1",null,null,15]
[null,null,"ECOPM200","BQL GĐ2",null,null,16]
["Statistic",null,"ECOPM300","BQL GĐ3",null,null,17]
[null,null,"ECOPM500","Ban quản trị",null,null,18]
["Financial",null,"ECOPM800","BQL Onsen",null,null,19]
[]
["Trust"]
[]
["Sub"]
[]
["Fund"]
[]
["Other"]

{"sheet":"Cost center","index":5,"n_rows":32,"n_cols":16,"rows_kept":32,"cut":false,"hidden":false,"merged":[]}
[{"$f":"Range2(L_CC[[Site]:[Priority CI]])","v":"E6:I24"}]
[{"$f":"Site!A2","v":"𝓔𝓬𝓸𝓹𝓪𝓻𝓴"},null,"COST CENTER (BỘ PHẬN NGÂN SÁCH)",null,"Là bộ phận phát sinh chi phí trong doanh nghiệp, thông thường được thiết lập gắn liền với bộ phận theo tổ chức của doanh nghiệp để thuận tiện lập và quản lý ngân sách. Cost center mang ý nghĩa là bộ phận (center) hơn nghĩa chi phí (cost), nên nó cũng được sử dụng để ghi nhận doanh thu"]
[{"$f":"Site!A3","v":"𝓜𝓪𝓷𝓪𝓰𝓮𝓶𝓮𝓷𝓽"},null,null,null,"Cost center là mã bắt buộc, là mã được sử dụng để lập ngân sách."]
[null,null,null,null,"⏬","⏬","⏬","⏬","⏬"]
[null,"_","Cost center","CC name","Site","Fund center","PC center","FS code","Priority CI","Faculty","Properties","#","_","FC name","PC name","FS name"]
["Site",null,"ECOPM001","Ban giám đốc",null,"ECOPM001",null,null,null,null,null,1,null,{"$f":"_xlfn.XLOOKUP(L_CC[Fund center],L_FC[Fund center],L_FC[FC name],\"-\")","v":"Ban giám đốc"},{"$f":"_xlfn.XLOOKUP(L_CC[PC center],L_PC[Profit center],L_PC[PC name],\"-\")","v":"-"},{"$f":"_xlfn.XLOOKUP(L_CC[FS code],L_FS[FS code],L_FS[FS name],\"-\")","v":"-"}]
[null,null,"ECOPM002","Kế toán",null,"ECOPM002",null,null,null,null,null,2,null,"Kế toán","-","-"]
["Fund center",null,"ECOPM003","Chăm sóc cư dân",null,"ECOPM003",null,null,null,null,null,3,null,"Chăm sóc cư dân","-","-"]
[null,null,"ECOPM004","Kỹ thuật",null,"ECOPM004",null,null,null,null,null,4,null,"Kỹ thuật","-","-"]
["Profit center",null,"ECOPM005","An ninh",null,"ECOPM005",null,null,null,null,null,5,null,"An ninh","-","-"]
[null,null,"ECOPM006","MTĐT",null,"ECOPM006",null,null,null,null,null,6,null,"MTĐT","-","-"]
["Cost center",null,"ECOPM007","Ecobus",null,"ECOPM007",null,null,null,null,null,7,null,"Ecobus","-","-"]
[null,null,"ECOPM008","CLB tiện ích",null,"ECOPM008",null,null,null,null,null,8,null,"CLB tiện ích","-","-"]
["MIS code",null,"ECOPM012","QLTC",null,"ECOPM012",null,null,null,null,null,9,null,"QLTC","-","-"]
[null,null,"ECOPM015","Bàn giao",null,"ECOPM015",null,null,null,null,null,10,null,"Bàn giao","-","-"]
["Commit",null,"ECOPM016","Leasing",null,"ECOPM016",null,null,null,null,null,11,null,"Leasing","-","-"]
[null,null,"ECOPM054","PCCC & CNCH",null,"ECOPM054",null,null,null,null,null,12,null,"PCCC & CNCH","-","-"]
["Object",null,"ECOPM055","Khối hỗ trợ",null,"ECOPM055",null,null,null,null,null,13,null,"Khối hỗ trợ","-","-"]
[null,null,"ECOPM082","Nhà hàng",null,"ECOPM082",null,null,null,null,null,14,null,"Nhà hàng","-","-"]
["Asset",null,"ECOPM100","BQL GĐ1",null,"ECOPM100",null,null,null,null,null,15,null,"BQL GĐ1","-","-"]
[null,null,"ECOPM200","BQL GĐ2",null,"ECOPM200",null,null,null,null,null,16,null,"BQL GĐ2","-","-"]
["Statistic",null,"ECOPM300","BQL GĐ3",null,"ECOPM300",null,null,null,null,null,17,null,"BQL GĐ3","-","-"]
[null,null,"ECOPM500","Ban quản trị",null,"ECOPM500",null,null,null,null,null,18,null,"Ban quản trị","-","-"]
["Financial",null,"ECOPM800","BQL Onsen",null,"ECOPM800",null,null,null,null,null,19,null,"BQL Onsen","-","-"]
[]
["Trust"]
[]
["Sub"]
[]
["Fund"]
[]
["Other"]

{"sheet":"MIS code","index":6,"n_rows":51,"n_cols":8,"rows_kept":51,"cut":false,"hidden":false,"merged":[]}
[{"$f":"Range2(L_Mis[Allocate])","v":"E6:E51"}]
[{"$f":"Site!A2","v":"𝓔𝓬𝓸𝓹𝓪𝓻𝓴"},null,"MIS CODE (MÃ LẬP BÁO CÁO QUẢN TRỊ)",null,"Là danh mục mã được phân loại để tổng hợp trình bày số liệu kết quả kinh doanh quản trị."]
[{"$f":"Site!A3","v":"𝓜𝓪𝓷𝓪𝓰𝓮𝓶𝓮𝓷𝓽"},null,null,null,"MIS code là để tổng hợp ngân sách theo chiều khoản mục, không phải là mã để lập ngân sách. Mã MIS được tính từ mã Commit (CI). Trường hợp đơn giản có thể map 1 mã MIS = 1 mã CI"]
[null,null,null,null,"⏬"]
[null,"_","MIS code","MIS name","Allocate","Properties","#","_"]
["Site",null,"14_","Doanh thu Ecobus",null,null,1]
[null,null,"29_","Nguồn khai thác SHC",null,null,2]
["Fund center",null,"89_","Thu nhập khác",null,null,3]
[null,null,"41_","Doanh thu khai thác hạ tầng",null,null,4]
["Profit center",null,"39_","Doanh thu CLB",null,null,5]
[null,null,"49_","Doanh thu hầm ô tô",null,null,6]
["Cost center",null,"22_","Doanh thu PQL",null,null,7]
[null,null,"48_","Doanh thu điện",null,null,8]
["MIS code",null,"30_","Doanh thu nước",null,null,9]
[null,null,"60_","Bảo hiểm cháy nổ",null,null,10]
["Commit",null,"53_","Thẻ các loại",null,null,11]
[null,null,"86_","Doanh thu chợ",null,null,12]
["Object",null,"63_","Doanh thu sự kiện",null,null,13]
[null,null,"50_","Doanh thu leasing",null,null,14]
["Asset",null,"18_","Doanh thu QLTC",null,null,15]
[null,null,"73_","Lãi tiền gửi",null,null,16]
["Statistic",null,"47_","Doanh thu nhà hàng",null,null,17]
[null,null,"71_","Doanh thu từ CĐT",null,null,18]
["Financial",null,"58_","Thu hộ BQT",null,null,19]
[null,null,"77_","Doanh thu nước khoáng Onsen",null,null,20]
["Trust",null,"11_","Chi phí quản lý khối back",null,null,21]
[null,null,"27_","Chi phí thuế",null,null,22]
["Sub",null,"15_","Chi phí đào tạo/tuyển dụng",null,null,23]
[null,null,"36_","Chi phí phúc lợi",null,null,24]
["Fund",null,"20_","Chi phí tiền lương",null,null,25]
[null,null,"10_","Chi phí vật tư, CCDC",null,null,26]
["Other",null,"54_","Chi phí công tác",null,null,27]
[null,null,"16_","Chi phí năng lượng/Nhiên liệu",null,null,28]
[null,null,"25_","Chi phí bảo trì",null,null,29]
[null,null,"64_","Dịch vụ thuê ngoài",null,null,30]
[null,null,"46_","Chi phí diệt côn trùng, chuột",null,null,31]
[null,null,"38_","Giá vốn bán hàng",null,null,32]
[null,null,"67_","Giặt là và Service charge",null,null,33]
[null,null,"85_","Hóa chất",null,null,34]
[null,null,"52_","Chi phí kiểm định",null,null,35]
[null,null,"17_","Chi phí sửa chữa lớn TSCĐ",null,null,36]
[null,null,"42_","Thu gom rác",null,null,37]
[null,null,"26_","Chi phí an ninh",null,null,38]
[null,null,"57_","Chi phí vệ sinh",null,null,39]
[null,null,"23_","Chi phí thuê tài sản",null,null,40]
[null,null,"45_","Chi phí tiền nước",null,null,41]
[null,null,"32_","Chi phí vận hành chung",null,null,42]
[null,null,"80_","Chi phí trang trí",null,null,43]
[null,null,"70_","CP Khấu hao TSCĐ",null,null,44]
[null,null,"12_","Chi phí hoa hồng môi giới",null,null,45]
[null,null,"34_","Chi phí sự kiện",null,null,46]

{"sheet":"Commit","index":7,"n_rows":191,"n_cols":11,"rows_kept":191,"cut":false,"hidden":false,"merged":[]}
[{"$f":"Range2(L_CI[[CI type]:[FS code]])","v":"E6:G191"}]
[{"$f":"Site!A2","v":"𝓔𝓬𝓸𝓹𝓪𝓻𝓴"},null,"COMMIT (MÃ KHOẢN MỤC)",null,"Là danh mục chi tiết được sử dụng để lập ngân sách và kiểm soát ngân sách"]
[{"$f":"Site!A3","v":"𝓜𝓪𝓷𝓪𝓰𝓮𝓶𝓮𝓷𝓽"}]
[null,null,null,null,"⏬","⏬","⏬"]
[null,"_","CI code","CI name","CI type","MIS code","FS code","Properties","#","_","MIS name"]
["Site",null,"DT0001","DT xe Bus","Doanh thu","14_",null,null,1,null,{"$f":"_xlfn.XLOOKUP(L_CI[MIS code],L_Mis[MIS code],L_Mis[MIS name],\"-\")","v":"Doanh thu Ecobus"}]
[null,null,"DT0002","DT xe Bus/ Quảng cáo","Doanh thu","14_",null,null,2,null,"Doanh thu Ecobus"]
["Fund center",null,"DT0003","DT xe Bus/ Thẻ tháng","Doanh thu","14_",null,null,3,null,"Doanh thu Ecobus"]
[null,null,"DT0004","DT xe Bus/ Vé lẻ","Doanh thu","14_",null,null,4,null,"Doanh thu Ecobus"]
["Profit center",null,"DT0005","DT xe điện/ Vé lẻ","Doanh thu","29_",null,null,5,null,"Nguồn khai thác SHC"]
[null,null,"DT0006","Thu nhập khác","Doanh thu","89_",null,null,6,null,"Thu nhập khác"]
["Cost center",null,"DT0007","Thu tiền phạt","Doanh thu","41_",null,null,7,null,"Doanh thu khai thác hạ tầng"]
[null,null,"DT0008","DT CLB/ Bán hàng hóa","Doanh thu","39_",null,null,8,null,"Doanh thu CLB"]
["MIS code",null,"DT0009","DT CLB/ Cho thuê khăn","Doanh thu","39_",null,null,9,null,"Doanh thu CLB"]
[null,null,"DT0010","DT CLB/ Cho thuê sự kiện","Doanh thu","39_",null,null,10,null,"Doanh thu CLB"]
["Commit",null,"DT0011","DT CLB/ Đồ ăn","Doanh thu","39_",null,null,11,null,"Doanh thu CLB"]
[null,null,"DT0012","DT CLB/ Đồ uống","Doanh thu","39_",null,null,12,null,"Doanh thu CLB"]
["Object",null,"DT0013","DT CLB/ Huấn luyện viên PT","Doanh thu","39_",null,null,13,null,"Doanh thu CLB"]
[null,null,"DT0014","DT CLB/ Khác","Doanh thu","39_",null,null,14,null,"Doanh thu CLB"]
["Asset",null,"DT0015","DT CLB/ Vé học bơi","Doanh thu","39_",null,null,15,null,"Doanh thu CLB"]
[null,null,"DT0016","DT CLB/ Vé Tenis","Doanh thu","39_",null,null,16,null,"Doanh thu CLB"]
["Statistic",null,"DT0017","DT CLB/Vé (Bơi.Gym,\\Sauna)","Doanh thu","39_",null,null,17,null,"Doanh thu CLB"]
[null,null,"DT0018","DT TMDV/ Đỗ xe đạp điện","Doanh thu","29_",null,null,18,null,"Nguồn khai thác SHC"]
["Financial",null,"DT0019","DT TMDV/ Đỗ xe máy tháng","Doanh thu","29_",null,null,19,null,"Nguồn khai thác SHC"]
[null,null,"DT0020","DT TMDV/ Đỗ xe ô tô tháng","Doanh thu","49_",null,null,20,null,"Doanh thu hầm ô tô"]
["Trust",null,"DT0021","DT TMDV/ Đỗ xe máy vãng lai","Doanh thu","29_",null,null,21,null,"Nguồn khai thác SHC"]
[null,null,"DT0022","DT Quản lý","Doanh thu","22_",null,null,22,null,"Doanh thu PQL"]
["Sub",null,"DT0023","DT Tiền điện thu hộ","Doanh thu","48_",null,null,23,null,"Doanh thu điện"]
[null,null,"DT0024","DT Tiền nước thu hộ","Doanh thu","30_",null,null,24,null,"Doanh thu nước"]
["Fund",null,"DT0025","DT TMDV/ Bảo hiểm cháy nổ","Doanh thu","60_",null,null,25,null,"Bảo hiểm cháy nổ"]
[null,null,"DT0026","DT TMDV/ Cấp thẻ các loại","Doanh thu","53_",null,null,26,null,"Thẻ các loại"]
["Other",null,"DT0027","DT TMDV/ Chợ cuối tuần","Doanh thu","86_",null,null,27,null,"Doanh thu chợ"]
[null,null,"DT0028","DT TMDV/ Cho thuê bạt","Doanh thu","86_",null,null,28,null,"Doanh thu chợ"]
[null,null,"DT0029","DT TMDV/ Cho thuê sự kiện","Doanh thu","63_",null,null,29,null,"Doanh thu sự kiện"]
[null,null,"DT0030","DT TMDV/Cho thuê trạm P.Sóng","Doanh thu","29_",null,null,30,null,"Nguồn khai thác SHC"]
[null,null,"DT0031","DT TMDV/ Đặt QC,tờ rơi,Standee","Doanh thu","29_",null,null,31,null,"Nguồn khai thác SHC"]
[null,null,"DT0032","DT TMDV/ Điểm đỗ xe hãng Taxi","Doanh thu","41_",null,null,32,null,"Doanh thu khai thác hạ tầng"]
[null,null,"DT0033","DT TMDV/ Khác","Doanh thu","41_",null,null,33,null,"Doanh thu khai thác hạ tầng"]
[null,null,"DT0034","DT TMDV/ Vệ sinh gia tăng","Doanh thu","41_",null,null,34,null,"Doanh thu khai thác hạ tầng"]
[null,null,"DT0035","DT Leasing - cho thuê mặt bằng","Doanh thu","50_",null,null,35,null,"Doanh thu leasing"]
[null,null,"DT0036","DT TMDV/VS,AN trong an toàn TC","Doanh thu","18_",null,null,36,null,"Doanh thu QLTC"]
[null,null,"DT0037","Doanh thu tài chính","TN tài chính","73_",null,null,37,null,"Lãi tiền gửi"]
[null,null,"DT0038","Doanh thu dich vụ bảo trì","Doanh thu","41_",null,null,38,null,"Doanh thu khai thác hạ tầng"]
[null,null,"DT0039","DT phí QL/ khu TM cho thuê","Doanh thu","22_",null,null,39,null,"Doanh thu PQL"]
[null,null,"DT0040","DT nhà hàng Biệt Thự Đảo","Doanh thu","47_",null,null,40,null,"Doanh thu nhà hàng"]
[null,null,"DT0041","DT TMDV/ Đỗ xe ô tô vãng lai","Doanh thu","49_",null,null,41,null,"Doanh thu hầm ô tô"]
[null,null,"DT0042","DT quản lý vận hành charge CĐT","Doanh thu","71_",null,null,42,null,"Doanh thu từ CĐT"]
[null,null,"DT0043","DT TMDV/Cho thuê trạm sạc VF","Doanh thu","49_",null,null,43,null,"Doanh thu hầm ô tô"]
[null,null,"DT0044","DT Phí quản lý thu hộ CĐT","Doanh thu","22_",null,null,44,null,"Doanh thu PQL"]
[null,null,"DT0045","DT trích từ quỹ kết dư các BQT","Doanh thu","58_",null,null,45,null,"Thu hộ BQT"]
[null,null,"DT0046","DT hoa hồng trạm sạc VF,DOP,,,","Doanh thu","41_",null,null,46,null,"Doanh thu khai thác hạ tầng"]
[null,null,"DT0047","Doanh thu cho thuê xe bus","Doanh thu","14_",null,null,47,null,"Doanh thu Ecobus"]
[null,null,"DT0048","Doanh thu nước khoáng Onsen","Doanh thu","77_",null,null,48,null,"Doanh thu nước khoáng Onsen"]
[null,null,"DT0049","Thu hộ thù lao Ban Quản Trị","TN khác","58_",null,null,49,null,"Thu hộ BQT"]
[null,null,"DT0050","Các khoản thu hộ khác cho BQT","TN khác","58_",null,null,50,null,"Thu hộ BQT"]
[null,null,"DT0051","Chia sẻ DT cho thuê mặt bằng","Doanh thu","41_",null,null,51,null,"Doanh thu khai thác hạ tầng"]
[null,null,"DT0052","Thu nhập quỹ kết dư","TN khác","58_",null,null,52,null,"Thu hộ BQT"]
[null,null,"DT0053","DT vận hành diện tích chung","Doanh thu","41_",null,null,53,null,"Doanh thu khai thác hạ tầng"]
[null,null,"DT0054","DT cho thuê mặt bằng thu hộBQT","Doanh thu","58_",null,null,54,null,"Thu hộ BQT"]
[null,null,"DT0055","DT tư vấn quản lý vận hành KĐT","Doanh thu","22_",null,null,55,null,"Doanh thu PQL"]
[null,null,"DT0056","DT cho thuê VT đặt tủ gửi đồ","Doanh thu","58_",null,null,56,null,"Thu hộ BQT"]
[null,null,"DT0057","DT CLB BTĐ/Vé bơi,gym,sauna","Doanh thu","39_",null,null,57,null,"Doanh thu CLB"]
[null,null,"DT0058","DT CLB BTĐ/Vé tenis","Doanh thu","39_",null,null,58,null,"Doanh thu CLB"]
[null,null,"CP0001","Chi phí lãi vay","Chi phí","11_",null,null,59,null,"Chi phí quản lý khối back"]
[null,null,"CP0002","Chi phí phạt","Chi phí","11_",null,null,60,null,"Chi phí quản lý khối back"]
[null,null,"CP0003","Lãi tiền gửi","Chi phí","11_",null,null,61,null,"Chi phí quản lý khối back"]
[null,null,"CP0004","Phí cà thẻ","Chi phí","11_",null,null,62,null,"Chi phí quản lý khối back"]
[null,null,"CP0005","Phí kiểm toán","Chi phí","11_",null,null,63,null,"Chi phí quản lý khối back"]
[null,null,"CP0006","Phí ngân hàng","Chi phí","11_",null,null,64,null,"Chi phí quản lý khối back"]
[null,null,"CP0007","Phí, lệ phí các loại","Chi phí","11_",null,null,65,null,"Chi phí quản lý khối back"]
[null,null,"CP0008","Chi phí thuế/ Thuế TNCN","Chi phí","27_",null,null,66,null,"Chi phí thuế"]
[null,null,"CP0009","Chi phí thuế/Thuế đất","Chi phí","27_",null,null,67,null,"Chi phí thuế"]
[null,null,"CP0010","Chi phí thuế/Thuế nhà thầu","Chi phí","27_",null,null,68,null,"Chi phí thuế"]
[null,null,"CP0011","CP thuế/Thuế TN môi trường","Chi phí","27_",null,null,69,null,"Chi phí thuế"]
[null,null,"CP0012","CP thuế/Thuế TNDN -Tạm nộp 20%","Chi phí","27_",null,null,70,null,"Chi phí thuế"]
[null,null,"CP0013","Chi phí thuế/Thuế TNDN","Chi phí","27_",null,null,71,null,"Chi phí thuế"]
[null,null,"CP0014","Chi phí thuế/Thuế VAT","Chi phí","27_",null,null,72,null,"Chi phí thuế"]
[null,null,"CP0015","CP đào tạo trực tiếp,gián tiếp","Chi phí","15_",null,null,73,null,"Chi phí đào tạo/tuyển dụng"]
[null,null,"CP0016","CP đào tạo, tuyển dụng  khác","Chi phí","15_",null,null,74,null,"Chi phí đào tạo/tuyển dụng"]
[null,null,"CP0017","CP thuê ngoài dịch vụ đào tạo","Chi phí","15_",null,null,75,null,"Chi phí đào tạo/tuyển dụng"]
[null,null,"CP0018","Chi phí văn hóa doanh nghiệp","Chi phí","36_",null,null,76,null,"Chi phí phúc lợi"]
[null,null,"CP0019","Chi phí lương/ BHXH, YT,TN","Chi phí","20_",null,null,77,null,"Chi phí tiền lương"]
[null,null,"CP0020","Chi phí lương/ Lương chính","Chi phí","20_",null,null,78,null,"Chi phí tiền lương"]
[null,null,"CP0021","CP lương/ Lương hiệu quả CV","Chi phí","20_",null,null,79,null,"Chi phí tiền lương"]
[null,null,"CP0022","CP lương/ Lương kinh doanh","Chi phí","20_",null,null,80,null,"Chi phí tiền lương"]
[null,null,"CP0023","Chi phí lương/ Lương ngoài giờ","Chi phí","20_",null,null,81,null,"Chi phí tiền lương"]
[null,null,"CP0024","Chi phí lương/ Phụ cấp ăn ca","Chi phí","20_",null,null,82,null,"Chi phí tiền lương"]
[null,null,"CP0025","Chi phí lương/ Phụ cấp đi lại","Chi phí","20_",null,null,83,null,"Chi phí tiền lương"]
[null,null,"CP0026","Chi phí lương/ Phụ cấp khác","Chi phí","20_",null,null,84,null,"Chi phí tiền lương"]
[null,null,"CP0027","CP lương/ Phụ cấp ngoại hình","Chi phí","20_",null,null,85,null,"Chi phí tiền lương"]
[null,null,"CP0028","CP lương/ Phụ cấp ngoại ngữ","Chi phí","20_",null,null,86,null,"Chi phí tiền lương"]
[null,null,"CP0029","CP lương/ Phụ cấp tay nghề","Chi phí","20_",null,null,87,null,"Chi phí tiền lương"]
[null,null,"CP0030","CP lương/ Phụ cấp trách nhiệm","Chi phí","20_",null,null,88,null,"Chi phí tiền lương"]
[null,null,"CP0031","Chi phí lương/ Quỹ công đoàn","Chi phí","20_",null,null,89,null,"Chi phí tiền lương"]
[null,null,"CP0032","Chi phí lương/ Tháng 13","Chi phí","20_",null,null,90,null,"Chi phí tiền lương"]
[null,null,"CP0033","Chi phí lương/ Thưởng","Chi phí","20_",null,null,91,null,"Chi phí tiền lương"]
[null,null,"CP0034","CP phúc lợi/ Bảo hiểm sức khỏe","Chi phí","36_",null,null,92,null,"Chi phí phúc lợi"]
[null,null,"CP0035","Chi phí phúc lợi khác","Chi phí","36_",null,null,93,null,"Chi phí phúc lợi"]
[null,null,"CP0036","CP phúc lợi/ Cá nhân (Hiếu hỉ)","Chi phí","36_",null,null,94,null,"Chi phí phúc lợi"]
[null,null,"CP0037","CP phúc lợi/ Sinh hoạt tập thể","Chi phí","36_",null,null,95,null,"Chi phí phúc lợi"]
[null,null,"CP0038","Chi phí phúc lợi/ Teambuilding","Chi phí","36_",null,null,96,null,"Chi phí phúc lợi"]
[null,null,"CP0039","CP CCDC, thiết bị văn phòng","Chi phí","10_",null,null,97,null,"Chi phí vật tư, CCDC"]
[null,null,"CP0040","Chi phí chống dịch Covid","Chi phí","11_",null,null,98,null,"Chi phí quản lý khối back"]
[null,null,"CP0041","Chi phí chuyển phát nhanh","Chi phí","11_",null,null,99,null,"Chi phí quản lý khối back"]
[null,null,"CP0042","Chi phí công tác","Chi phí","54_",null,null,100,null,"Chi phí công tác"]
[null,null,"CP0043","Chi phí dầu xe","Chi phí","16_",null,null,101,null,"Chi phí năng lượng/Nhiên liệu"]
[null,null,"CP0044","Chi phí dầu, nhớt thay thế","Chi phí","25_",null,null,102,null,"Chi phí bảo trì"]
[null,null,"CP0045","Chi phí dịch vụ mua ngoài khác","Chi phí","64_",null,null,103,null,"Dịch vụ thuê ngoài"]
[null,null,"CP0046","CP điện thoại, Internet CĐ","Chi phí","11_",null,null,104,null,"Chi phí quản lý khối back"]
[null,null,"CP0047","Chi phí diệt côn trùng, chuột","Chi phí","46_",null,null,105,null,"Chi phí diệt côn trùng, chuột"]
[null,null,"CP0048","Chi phí đồ dùng trên xe","Chi phí","10_",null,null,106,null,"Chi phí vật tư, CCDC"]
[null,null,"CP0049","Chi phí tiếp khách","Chi phí","11_",null,null,107,null,"Chi phí quản lý khối back"]
[null,null,"CP0050","Chi phí đồng phục","Chi phí","10_",null,null,108,null,"Chi phí vật tư, CCDC"]
[null,null,"CP0051","Chi phí giá vốn dịch vụ","Chi phí","38_",null,null,109,null,"Giá vốn bán hàng"]
[null,null,"CP0052","Chi phí giá vốn đồ ăn","Chi phí","38_",null,null,110,null,"Giá vốn bán hàng"]
[null,null,"CP0053","Chi phí giá vốn đồ uống","Chi phí","38_",null,null,111,null,"Giá vốn bán hàng"]
[null,null,"CP0054","Chi phí giá vốn hàng hóa","Chi phí","38_",null,null,112,null,"Giá vốn bán hàng"]
[null,null,"CP0055","Chi phí giặt là","Chi phí","67_",null,null,113,null,"Giặt là và Service charge"]
[null,null,"CP0056","Chi phí GPS","Chi phí","10_",null,null,114,null,"Chi phí vật tư, CCDC"]
[null,null,"CP0057","Chi phí hóa chất bể bơi","Chi phí","85_",null,null,115,null,"Hóa chất"]
[null,null,"CP0058","Chi phí hút bể tách mỡ","Chi phí","25_",null,null,116,null,"Chi phí bảo trì"]
[null,null,"CP0059","Chi phí in ấn, văn phòng phẩm","Chi phí","11_",null,null,117,null,"Chi phí quản lý khối back"]
[null,null,"CP0060","CP kiểm định chất lượng nước","Chi phí","52_",null,null,118,null,"Chi phí kiểm định"]
[null,null,"CP0061","Chi phí kiểm định công tơ","Chi phí","52_",null,null,119,null,"Chi phí kiểm định"]
[null,null,"CP0062","CP kiểm định HT nước thải","Chi phí","52_",null,null,120,null,"Chi phí kiểm định"]
[null,null,"CP0063","Chi phí kiểm định nhà máy nước","Chi phí","52_",null,null,121,null,"Chi phí kiểm định"]
[null,null,"CP0064","Chi phí mua bảo hiểm rủi ro","Chi phí","60_",null,null,122,null,"Bảo hiểm cháy nổ"]
[null,null,"CP0065","Chi phí nạo vét hố ga","Chi phí","25_",null,null,123,null,"Chi phí bảo trì"]
[null,null,"CP0066","CP phần mềm, bảo trì phần mềm","Chi phí","11_",null,null,124,null,"Chi phí quản lý khối back"]
[null,null,"CP0067","Chi phí photo","Chi phí","11_",null,null,125,null,"Chi phí quản lý khối back"]
[null,null,"CP0068","Chi phí rửa xe, bảo dưỡng xe","Chi phí","25_",null,null,126,null,"Chi phí bảo trì"]
[null,null,"CP0069","Chi phí sạc điện","Chi phí","16_",null,null,127,null,"Chi phí năng lượng/Nhiên liệu"]
[null,null,"CP0070","Chi phí SMS","Chi phí","10_",null,null,128,null,"Chi phí vật tư, CCDC"]
[null,null,"CP0071","Chi phí sửa chữa lớn TSCĐ","Chi phí","17_",null,null,129,null,"Chi phí sửa chữa lớn TSCĐ"]
[null,null,"CP0072","CP SChữa, BDưỡng HT chống sét","Chi phí","25_",null,null,130,null,"Chi phí bảo trì"]
[null,null,"CP0073","CP SChữa, B.Dưỡng HT cứu hỏa","Chi phí","25_",null,null,131,null,"Chi phí bảo trì"]
[null,null,"CP0074","CP SChữa, B.Dưỡng HT thang máy","Chi phí","25_",null,null,132,null,"Chi phí bảo trì"]
[null,null,"CP0075","CP Schữa ,BDưỡng HT thoát nước","Chi phí","25_",null,null,133,null,"Chi phí bảo trì"]
[null,null,"CP0076","CP sửa chữa, bảo dưỡng khác","Chi phí","25_",null,null,134,null,"Chi phí bảo trì"]
[null,null,"CP0077","CP sửa chữa, bảo dưỡng xe Bus","Chi phí","25_",null,null,135,null,"Chi phí bảo trì"]
[null,null,"CP0078","Chi phí thẻ Bus","Chi phí","53_",null,null,136,null,"Thẻ các loại"]
[null,null,"CP0079","Chi phí thẻ cư dân","Chi phí","53_",null,null,137,null,"Thẻ các loại"]
[null,null,"CP0080","Chi phí thu gom rác thải","Chi phí","42_",null,null,138,null,"Thu gom rác"]
[null,null,"CP0081","CP thuê ngoài dịch vụ an ninh","Chi phí","26_",null,null,139,null,"Chi phí an ninh"]
[null,null,"CP0082","CP thuê ngoài DV bãi giữ xe","Chi phí","26_",null,null,140,null,"Chi phí an ninh"]
[null,null,"CP0083","CP thuê ngoài DV chợ cuối tuần","Chi phí","64_",null,null,141,null,"Dịch vụ thuê ngoài"]
[null,null,"CP0084","CP thuê ngoài DV vệ sinh","Chi phí","57_",null,null,142,null,"Chi phí vệ sinh"]
[null,null,"CP0085","CP thuê ngoài GV dạy bơi","Chi phí","64_",null,null,143,null,"Dịch vụ thuê ngoài"]
[null,null,"CP0086","CP thuê ngoài giáo viên PT","Chi phí","64_",null,null,144,null,"Dịch vụ thuê ngoài"]
[null,null,"CP0087","Chi phí thuê tài sản","Chi phí","23_",null,null,145,null,"Chi phí thuê tài sản"]
[null,null,"CP0088","Chi phí tiền điện","Chi phí","16_",null,null,146,null,"Chi phí năng lượng/Nhiên liệu"]
[null,null,"CP0089","Chi phí tiền nước","Chi phí","45_",null,null,147,null,"Chi phí tiền nước"]
[null,null,"CP0090","Chi phí tiền nước uống","Chi phí","11_",null,null,148,null,"Chi phí quản lý khối back"]
[null,null,"CP0091","Chi phí vận chuyển","Chi phí","11_",null,null,149,null,"Chi phí quản lý khối back"]
[null,null,"CP0092","Chi phí vận hành khác","Chi phí","32_",null,null,150,null,"Chi phí vận hành chung"]
[null,null,"CP0093","CP vận hành máy PĐiện dự phòng","Chi phí","16_",null,null,151,null,"Chi phí năng lượng/Nhiên liệu"]
[null,null,"CP0094","Chi phí vận hành trạm biến áp","Chi phí","32_",null,null,152,null,"Chi phí vận hành chung"]
[null,null,"CP0095","Chi phí vật tư, vật liệu","Chi phí","10_",null,null,153,null,"Chi phí vật tư, CCDC"]
[null,null,"CP0096","Chi phí vệ sinh mái chung cư","Chi phí","57_",null,null,154,null,"Chi phí vệ sinh"]
[null,null,"CP0097","Chi phí Wifi 4G","Chi phí","32_",null,null,155,null,"Chi phí vận hành chung"]
[null,null,"CP0098","Chi phí xăng xe","Chi phí","16_",null,null,156,null,"Chi phí năng lượng/Nhiên liệu"]
[null,null,"CP0099","Chi phí xử lý chất thải","Chi phí","32_",null,null,157,null,"Chi phí vận hành chung"]
[null,null,"CP0100","Chi phí y tế bể bơi","Chi phí","32_",null,null,158,null,"Chi phí vận hành chung"]
[null,null,"CP0101","Công tác phí","Chi phí","54_",null,null,159,null,"Chi phí công tác"]
[null,null,"CP0102","Chi phí hóa chất nhà máy nước","Chi phí","85_",null,null,160,null,"Hóa chất"]
[null,null,"CP0103","Chi phí hoa tươi","Chi phí","80_",null,null,161,null,"Chi phí trang trí"]
[null,null,"CP0104","CP Khấu hao TSCĐ","Chi phí","70_",null,null,162,null,"CP Khấu hao TSCĐ"]
[null,null,"CP0105","Chi phí kiểm định thang máy","Chi phí","25_",null,null,163,null,"Chi phí bảo trì"]
[null,null,"CP0106","Phí loại trừ","Chi phí","11_",null,null,164,null,"Chi phí quản lý khối back"]
[null,null,"CP0107","CP thuê ngoài DV vận chuyển","Chi phí","64_",null,null,165,null,"Dịch vụ thuê ngoài"]
[null,null,"CP0108","CP thuê ngoài DV lắp đặt","Chi phí","64_",null,null,166,null,"Dịch vụ thuê ngoài"]
[null,null,"CP0109","Phí chuyển tiền - Onepay","Chi phí","11_",null,null,167,null,"Chi phí quản lý khối back"]
[null,null,"CP0110","CP bánh kẹo, hoa quả","Chi phí","80_",null,null,168,null,"Chi phí trang trí"]
[null,null,"CP0111","CP vận hành BQT- RC","Chi phí","29_",null,null,169,null,"Nguồn khai thác SHC"]
[null,null,"CP0112","CP hút bể phốt","Chi phí","25_",null,null,170,null,"Chi phí bảo trì"]
[null,null,"CP0113","CP DV hóa đơn điện tử,PT,Vé xe","Chi phí","11_",null,null,171,null,"Chi phí quản lý khối back"]
[null,null,"CP0114","CP Thù lao Ban quản trị","Chi phí","58_",null,null,172,null,"Thu hộ BQT"]
[null,null,"CP0115","Chi phí hoa hồng môi giới","Chi phí","12_",null,null,173,null,"Chi phí hoa hồng môi giới"]
[null,null,"CP0116","CP quỹ Phòng chống thiên tai","Chi phí","74_",null,null,174,null,"-"]
[null,null,"CP0117","Chi phí đăng kiểm xe bus","Chi phí","52_",null,null,175,null,"Chi phí kiểm định"]
[null,null,"CP0118","Chi phí phát triển cộng đồng","Chi phí","34_",null,null,176,null,"Chi phí sự kiện"]
[null,null,"CP0119","CP tổ chức hội nghị cư dân","Chi phí","34_",null,null,177,null,"Chi phí sự kiện"]
[null,null,"CP0120","CP HC-NS CĐT phân bổ cho Ecopm","Chi phí","11_",null,null,178,null,"Chi phí quản lý khối back"]
[null,null,"CP0121","CP quản lý vận hành dự án","Chi phí","32_",null,null,179,null,"Chi phí vận hành chung"]
[null,null,"CP0122","CP trích từ quỹ kết dư các BQT","Chi phí","58_",null,null,180,null,"Thu hộ BQT"]
[null,null,"CP0123","Chi phí phạt vi phạm về thuế","Chi phí","27_",null,null,181,null,"Chi phí thuế"]
[null,null,"CP0124","CP quan trắc phân tích MT","Chi phí","52_",null,null,182,null,"Chi phí kiểm định"]
[null,null,"CP0125","CP hỗ trợ giặt là và service","Chi phí","67_",null,null,183,null,"Giặt là và Service charge"]
[null,null,"CP0126","Chi phí tư vấn dự án","Chi phí","32_",null,null,184,null,"Chi phí vận hành chung"]
[null,null,"CP0127","CP trích lập quỹ khen thưởng","Chi phí","36_",null,null,185,null,"Chi phí phúc lợi"]
[null,null,"CP0128","CP loại - Nợ phải thu khó đòi","Chi phí","11_",null,null,186,null,"Chi phí quản lý khối back"]

{"sheet":"Object","index":8,"n_rows":173,"n_cols":8,"rows_kept":173,"cut":false,"hidden":false,"merged":[]}
[{"$f":"Range2(L_OJ[Site])","v":"E6:E173"}]
[{"$f":"Site!A2","v":"𝓔𝓬𝓸𝓹𝓪𝓻𝓴"},null,"OBJECT CODE (MÃ ĐỐI TƯỢNG DỊCH VỤ)",null,"Ví dụ: tuyến xe, tòa nhà"]
[{"$f":"Site!A3","v":"𝓜𝓪𝓷𝓪𝓰𝓮𝓶𝓮𝓷𝓽"}]
[null,null,null,null,"⏬"]
[null,"_","Object","Object name","Site","Properties","#","_"]
["Site",null,"DA0000","Văn phòng Park 2","PQL",null,1]
[null,null,"DA0001","BĐX Chợ Ướt","BĐX",null,2]
["Fund center",null,"DA0002","VPTĐ (VP1)","PQL",null,3]
[null,null,"DA0003","VPTĐ (VP2)","PQL",null,4]
["Profit center",null,"DA0004","VPTĐ (khu Miếu)","PQL",null,5]
[null,null,"DA0005","VPTĐ (Nhà ăn)","PQL",null,6]
["Cost center",null,"DA0007","Công viên Hồ Thiên Nga","PQL",null,7]
[null,null,"DA0009","Công viên Mùa Hạ","PQL",null,8]
["MIS code",null,"DA0010","VPTĐ (VP Ban kinh doanh)","PQL",null,9]
[null,null,"DA0011","Công viên Mùa Xuân","PQL",null,10]
["Commit",null,"DA0021","Nhà máy nước","PQL",null,11]
[null,null,"DA0022","Hạ tầng chung KĐT","PQL",null,12]
["Object",null,"DA0023","Chợ Ecosunday","PQL",null,13]
[null,null,"DA0024","Văn phòng BQL GĐ1","PQL",null,14]
["Asset",null,"DA0025","VPTĐ (Nhà mẫu dự án)","PQL",null,15]
[null,null,"DA0026","VPTĐ (VP BQLDA)","PQL",null,16]
["Statistic",null,"DA0029","Văn phòng BQL GĐ2","PQL",null,17]
[null,null,"DA0030","Văn phòng BQL GĐ3","PQL",null,18]
["Financial",null,"DA0031","Kênh vành đai","PQL",null,19]
[null,null,"DA0114","CLB Rừng Cọ","CLB",null,20]
["Trust",null,"DA0115","Chung Rừng Cọ","PQL",null,21]
[null,null,"DA0116","BĐX Rừng Cọ","BĐX",null,22]
["Sub",null,"DA0117","Leasing Rừng Cọ","Leasing",null,23]
[null,null,"DA0118","Trạm XLNT số 1","Khác",null,24]
["Fund",null,"DA0202","Chung Phố Trúc","PQL",null,25]
[null,null,"DA0203","BĐX Highland","BĐX",null,26]
["Other",null,"DA0302","CLB Vườn Tùng","CLB",null,27]
[null,null,"DA0303","Chung Vườn Tùng","PQL",null,28]
[null,null,"DA0402","CLB Vườn Mai","CLB",null,29]
[null,null,"DA0403","Chung Vườn Mai","PQL",null,30]
[null,null,"DA0502","Chung Phố Cúc","PQL",null,31]
[null,null,"DA0603","CLB Park River","CLB",null,32]
[null,null,"DA0604","Chung Park River","PQL",null,33]
[null,null,"DA0801","S3- Skyoasis","PQL",null,34]
[null,null,"DA0802","S-Premium-Skyoasis","PQL",null,35]
[null,null,"DA0803","S1-Skyoasis","PQL",null,36]
[null,null,"DA0804","S2-Skyoasis","PQL",null,37]
[null,null,"DA0805","Chung Sky Oasis","PQL",null,38]
[null,null,"DA0806","CLB Sky Oasis","CLB",null,39]
[null,null,"DA0807","BĐX CT07A","PQL",null,40]
[null,null,"DA0901","SO1 - Solforest","PQL",null,41]
[null,null,"DA0902","SO2- Solforest","PQL",null,42]
[null,null,"DA0903","Chung Sol Forest","PQL",null,43]
[null,null,"DA1007","Chung Biệt Thự Đảo","PQL",null,44]
[null,null,"DA1008","CLB biệt thự đảo 1","CLB",null,45]
[null,null,"DA1010","Nhà hàng Biệt Thự Đảo","PQL",null,46]
[null,null,"DA1101","Tòa Westbay A","PQL",null,47]
[null,null,"DA1102","Tòa Westbay B","PQL",null,48]
[null,null,"DA1103","Tòa Westbay C","PQL",null,49]
[null,null,"DA1104","Tòa Westbay D","PQL",null,50]
[null,null,"DA1105","Bãi đỗ xe Westbay","BĐX",null,51]
[null,null,"DA1107","CLB Westbay","CLB",null,52]
[null,null,"DA1108","Chung Westbay","PQL",null,53]
[null,null,"DA1109","Leasing Westbay","PQL",null,54]
[null,null,"DA1203","Chung Grand Marina","PQL",null,55]
[null,null,"DA1303","Chung Marina Arc","PQL",null,56]
[null,null,"DA1403","CLB Marina Arc","CLB",null,57]
[null,null,"DA1404","Chung CT07","PQL",null,58]
[null,null,"DA1503","CLB Thủy Nguyên","CLB",null,59]
[null,null,"DA1504","Chung Thủy Nguyên","PQL",null,60]
[null,null,"DA1608","Chung Park 1, 2 Sky 1","PQL",null,61]
[null,null,"DA1610","Chung Lake 1, 2","PQL",null,62]
[null,null,"DA1612","CLB Lake","CLB",null,63]
[null,null,"DA1613","CLB Sky 2,3","CLB",null,64]
[null,null,"DA1615","BĐX Sky 2,3","BĐX",null,65]
[null,null,"DA1616","BĐX Lake 1,2","BĐX",null,66]
[null,null,"DA1617","BĐX Park 1, 2 Sky 1","BĐX",null,67]
[null,null,"DA1618","CLB Grand Park","CLB",null,68]
[null,null,"DA1619","Leasing AQB-A","Leasing",null,69]
[null,null,"DA1620","Leasing AQB-B","Leasing",null,70]
[null,null,"DA1702","Chung Thảo Nguyên","PQL",null,71]
[null,null,"DA1704","CLB Thảo Nguyên","CLB",null,72]
[null,null,"DA1705","Trạm XLNT số 3","PQL",null,73]
[null,null,"DA1803","CLB Mimosa","CLB",null,74]
[null,null,"DA1804","Chung Mimosa","PQL",null,75]
[null,null,"DA1901","CLB Spring Valley","CLB",null,76]
[null,null,"DA1902","Chung Spring Valley","PQL",null,77]
[null,null,"DA2003","Chung Marina","PQL",null,78]
[null,null,"DA2102","Chung Thủy Trúc","PQL",null,79]
[null,null,"DA2202","Chung Swanlake","PQL",null,80]
[null,null,"DA2301","Nhà phố Vịnh Đảo (TT-PT1)","PQL",null,81]
[null,null,"DA2302","Nhà phố Vịnh Đảo (TT-PT2)","PQL",null,82]
[null,null,"DA2303","Nhà phố Vịnh Đảo (TT-PT3)","PQL",null,83]
[null,null,"DA2304","Chung Nhà Phố Vịnh Đảo","PQL",null,84]
[null,null,"DA2305","Nhà phố Vịnh Đảo (TT-PT4)","PQL",null,85]
[null,null,"DA2306","Nhà phố Vịnh Đảo (SH-PT2)","PQL",null,86]
[null,null,"DA2307","Trạm XLNT số 2","PQL",null,87]
[null,null,"DA2308","CLB Solforest","CLB",null,88]
[null,null,"DA2309","Chung Thủy Tiên","PQL",null,89]
[null,null,"DA2310","Chung Haven Park","PQL",null,90]
[null,null,"DA2311","BĐX Thủy Tiên","BĐX",null,91]
[null,null,"DA2312","Chung Sky 2, 3","PQL",null,92]
[null,null,"DA2314","Chung Westbay ABC","PQL",null,93]
[null,null,"DA2316","Tòa R3 - CT21,22","PQL",null,94]
[null,null,"DA2317","Tòa R2 CT21,22","PQL",null,95]
[null,null,"DA2318","Tòa R1  CT21,22","PQL",null,96]
[null,null,"DA2319","Tòa L1 CT21,22","PQL",null,97]
[null,null,"DA2320","Tòa L2  CT21,22","PQL",null,98]
[null,null,"DA2321","Tòa B1 CT21,22","PQL",null,99]
[null,null,"DA2322","Tòa B2 CT21,22","PQL",null,100]
[null,null,"DA2323","Tòa B3 CT21,22","PQL",null,101]
[null,null,"DA2324","Xe bus 29B-079.09","Bus",null,102]
[null,null,"DA2325","Xe bus 29B-079.19","Bus",null,103]
[null,null,"DA2326","Xe bus 29B-079.52","Bus",null,104]
[null,null,"DA2327","Xe bus 29B-079.25","Bus",null,105]
[null,null,"DA2328","Xe bus 29B-078.91","Bus",null,106]
[null,null,"DA2329","Xe bus 29B-059.63","Bus",null,107]
[null,null,"DA2330","Xe bus 29B-069.42","Bus",null,108]
[null,null,"DA2331","Xe bus 29B-068.71","Bus",null,109]
[null,null,"DA2332","Xe bus 29B-070.33","Bus",null,110]
[null,null,"DA2333","Xe bus 29B-131.03","Bus",null,111]
[null,null,"DA2334","Xe bus 29B-130.90","Bus",null,112]
[null,null,"DA2335","Xe bus 29B-102.71","Bus",null,113]
[null,null,"DA2336","Xe bus 29B-131.06","Bus",null,114]
[null,null,"DA2337","Xe bus 29B-130.93","Bus",null,115]
[null,null,"DA2338","Xe bus 29B-134.56","Bus",null,116]
[null,null,"DA2339","Xe bus 29B-133.96","Bus",null,117]
[null,null,"DA2340","Xe bus 29B-133.45","Bus",null,118]
[null,null,"DA2341","Xe bus 29B-134.42","Bus",null,119]
[null,null,"DA2342","Xe bus 29B-134.76","Bus",null,120]
[null,null,"DA2343","Xe bus 29B-167.96","Bus",null,121]
[null,null,"DA2344","Xe bus 29B-168.82","Bus",null,122]
[null,null,"DA2345","Xe bus 29B-167.66","Bus",null,123]
[null,null,"DA2346","Xe bus 29B-168.20","Bus",null,124]
[null,null,"DA2347","Xe bus 29B-165.82","Bus",null,125]
[null,null,"DA2348","Xe bus 29B-174.91","Bus",null,126]
[null,null,"DA2349","Xe bus 29B-174.81","Bus",null,127]
[null,null,"DA2350","Xe bus 29B-174.66","Bus",null,128]
[null,null,"DA2351","Xe bus 29B-174.10","Bus",null,129]
[null,null,"DA2352","Xe bus 29B-174.62","Bus",null,130]
[null,null,"DA2353","Xe bus 29B-400.19","Bus",null,131]
[null,null,"DA2354","Xe bus 29B-400.25","Bus",null,132]
[null,null,"DA2355","Xe bus 29B-003.12","Bus",null,133]
[null,null,"DA2356","Xe bus 29B-400.52","Bus",null,134]
[null,null,"DA2357","Xe bus 29B-403.44","Bus",null,135]
[null,null,"DA2358","Xe bus 29B-403.62","Bus",null,136]
[null,null,"DA2359","Xe bus 29B-409.65","Bus",null,137]
[null,null,"DA2360","Xe bus 29B-408.78","Bus",null,138]
[null,null,"DA2361","Xe bus 29B-409.46","Bus",null,139]
[null,null,"DA2362","Xe bus 29B-409.54","Bus",null,140]
[null,null,"DA2363","Xe bus 29B-400.32","Bus",null,141]
[null,null,"DA2364","Xe bus 29B-069.41","Bus",null,142]
[null,null,"DA2365","Xe bus 29B-414.13","Bus",null,143]
[null,null,"DA2366","Xe bus 29B-414.37","Bus",null,144]
[null,null,"DA2367","Xe bus 29B-414.80","Bus",null,145]
[null,null,"DA2368","Xe bus 29B-414.56","Bus",null,146]
[null,null,"DA2369","Xe bus 29B-414.71","Bus",null,147]
[null,null,"DA2370","Xe tải Thaco 29C-895.77","PQL",null,148]
[null,null,"DA2371","Xe quét hút Isuzu 89C-258.09","PQL",null,149]
[null,null,"DA2372","Xe xi tec Foton 29H-139.56","PQL",null,150]
[null,null,"DA2373","Mori Onsen","PQL",null,151]
[null,null,"DA2374","BĐX CT07","PQL",null,152]
[null,null,"DA2375","BĐX Haven Park","PQL",null,153]
[null,null,"DA23777","CLB Havenpark","CLB",null,154]
[null,null,"DA23778","Onsen căn hộ","PQL",null,155]
[null,null,"DA2379","Đảo 8","PQL",null,156]
[null,null,"DA2380","Công viên Vườn Nhật","PQL",null,157]
[null,null,"DA2381","Eco Central Park","PQL",null,158]
[null,null,"DA2382","Eco Retreat","PQL",null,159]
[null,null,"DA2383","Chung Sky Forest","PQL",null,160]
[null,null,"DA2384","Omni","PQL",null,161]
[null,null,"DA2385","BĐX Solforest","BĐX",null,162]
[null,null,"DA2386","Chung CT07A","PQL",null,163]
[null,null,"DA2387","BĐX CT21,22","BĐX",null,164]
[null,null,"DA2388","Thủy Tiên 1","PQL",null,165]
[null,null,"DA2389","Thủy Tiên 2","PQL",null,166]
[null,null,"DA2390","Văn phòng BQL Onsen","PQL",null,167]
[null,null,"DA2392","CLB Skyforest","PQL",null,168]

{"sheet":"Asset","index":9,"n_rows":32,"n_cols":8,"rows_kept":32,"cut":false,"hidden":false,"merged":[]}
[]
[{"$f":"Site!A2","v":"𝓔𝓬𝓸𝓹𝓪𝓻𝓴"},null,"ASSET (PHÂN LOẠI TÀI SẢN)","Là danh mục để phân loại tài sản khi lập ngân sách CAPEX"]
[{"$f":"Site!A3","v":"𝓜𝓪𝓷𝓪𝓰𝓮𝓶𝓮𝓷𝓽"}]
[null,null,null,"⏬"]
[null,"_","Asset type","TK NG","Properties","#","_","Tên tài khoản"]
["Site",null,"CAPEX trang thiết bị kỹ thuật","220_",null,1,null,{"$f":"_xlfn.XLOOKUP(L_AS[TK NG],L_FS[FS code],L_FS[FS name],\"-\")","v":"Tài sản cố định"}]
[null,null,"CAPEX cải tạo tòa nhà","220_",null,2,null,"Tài sản cố định"]
["Fund center",null,"CNTT_Giải pháp An ninh Bảo mật","220_",null,3,null,"Tài sản cố định"]
[null,null,"CNTT_Mua sắm Trang thiết bị","240_",null,4,null,"Tài sản dở dang dài hạn"]
["Profit center",null,"CNTT_Nâng cấp hạ tầng","240_",null,5,null,"Tài sản dở dang dài hạn"]
[null,null,"CNTT_Nâng cấp ứng dụng","240_",null,6,null,"Tài sản dở dang dài hạn"]
["Cost center",null,"CNTT_Ứng dụng mới","240_",null,7,null,"Tài sản dở dang dài hạn"]
[null,null,"Phương tiện vận tải","240_",null,8,null,"Tài sản dở dang dài hạn"]
["MIS code",null,"CAPEX hành chính","240_",null,9,null,"Tài sản dở dang dài hạn"]
[null,null,"TKT_Công cụ dụng cụ đầu tư","240_",null,10,null,"Tài sản dở dang dài hạn"]
["Commit"]
[]
["Object"]
[]
["Asset"]
[]
["Statistic"]
[]
["Financial"]
[]
["Trust"]
[]
["Sub"]
[]
["Fund"]
[]
["Other"]

{"sheet":"Statistic","index":10,"n_rows":32,"n_cols":7,"rows_kept":32,"cut":false,"hidden":false,"merged":[]}
[]
[{"$f":"Site!A2","v":"𝓔𝓬𝓸𝓹𝓪𝓻𝓴"},null,"STATISTIC (CHỈ TIÊU THỐNG KÊ)",null,"Là danh mục các chỉ tiêu thống kê hoạt động, danh mục này chủ yếu là các chỉ tiêu phi tài chính"]
[{"$f":"Site!A3","v":"𝓜𝓪𝓷𝓪𝓰𝓮𝓶𝓮𝓷𝓽"}]
[]
[null,"_","Statistics","Statistics name","Unit","Properties","#"]
["Site",null,"CT01","Số người lao động","người",null,1]
[null,null,"CT02","Diện tích quản lý","m²",null,2]
["Fund center",null,"CT03","Diện tích tính phí quản lý","m²",null,3]
[null,null,"CT04","Số căn quản lý","lot",null,4]
["Profit center",null,"CT05","Số lot đỗ xe ô tô","lot",null,5]
[null,null,"CT06","Số điểm đỗ xe","hầm",null,6]
["Cost center",null,"CT07","Số bể bơi + phòng gym","CLB",null,7]
[null,null,"CT08","Số công viên","cái",null,8]
["MIS code",null,"CT09","Số xe bus","xe",null,9]
[null,null,"CT10","Diện tích thương mại cho thuê","m2",null,10]
["Commit",null,"CT11","Số khu quản lý","khu",null,11]
[]
["Object"]
[]
["Asset"]
[]
["Statistic"]
[]
["Financial"]
[]
["Trust"]
[]
["Sub"]
[]
["Fund"]
[]
["Other"]

{"sheet":"Financial","index":11,"n_rows":53,"n_cols":11,"rows_kept":53,"cut":false,"hidden":false,"merged":[]}
[{"$f":"Range2(L_FS[BS code])","v":"E6:E53"}]
[{"$f":"Site!A2","v":"𝓔𝓬𝓸𝓹𝓪𝓻𝓴"},null,"FINANCIAL (CHỈ TIÊU BCTC)",null,"Là chỉ tiêu báo cáo tài chính, được nội suy ra từ các mã CI và Cost center, để lập báo cáo tài chính dự phóng"]
[{"$f":"Site!A3","v":"𝓜𝓪𝓷𝓪𝓰𝓮𝓶𝓮𝓷𝓽"},null,null,null,null,null,null,null,"CASH FLOW"]
[null,null,null,null,"⏬","⏬"]
[null,"_","FS code","FS name","BS code","No","Properties",null,"CF code","CF name","Properties"]
["Site",null,"001_","Doanh thu bán hàng","421_",null,null,null,"01_","Tiền thu từ bán hàng và cung cấp dịch vụ và doanh "]
[null,null,"002_","Chiết khấu, giảm giá","421_",null,null,null,"02_","Tiền chi trả cho người cung cấp hàng hóa, dịch vụ"]
["Fund center",null,"011_","Giá vốn hàng bán","421_",null,null,null,"03_","Tiền chi trả người lao động"]
[null,null,"021_","Doanh thu tài chính","421_",null,null,null,"04_","Tiền lãi vay đã trả"]
["Profit center",null,"022_","Chi phí tài chính","421_",null,null,null,"05_","Thuế thu nhập doanh nghiệp đã nộp"]
[null,null,"025_","Chi phí bán hàng","421_",null,null,null,"06_","Tiền thu khác từ các hoạt động kinh doanh"]
["Cost center",null,"026_","Chi phí quản lý","421_",null,null,null,"07_","Tiền chi khác cho các hoạt động kinh doanh"]
[null,null,"031_","Thu thập khác","421_",null,null,null,"21_","Tiền chi để mua sắm và xây dựng TSCĐ các tài sản dài hạn"]
["MIS code",null,"032_","Chi phí khác","421_",null,null,null,"22_","Tiền thu từ thanh lý, nhượng bán TSCĐ tài sản dài hạn"]
[null,null,"110_","Tiền và các khoản tương đương tiền","110_",1,null,null,"23_","Tiền chi cho vay, mua công cụ nợ của đơn vị khác"]
["Commit",null,"120_","Các khoản đầu tư tài chính ngắn hạn","120_",1,null,null,"24_","Tiền thu hồi cho vay, bán lại công cụ nợ"]
[null,null,"130_","Các khoản phải thu ngắn hạn","130_",1,null,null,"25_","Tiền chi đầu tư góp vốn vào các đơn vị khác"]
["Object",null,"140_","Hàng tồn kho","140_",1,null,null,"26_","Tiền thu hồi đầu tư góp vốn vào các đơn vị khác"]
[null,null,"150_","Chi phí trả trước ngắn hạn","150_",1,null,null,"27_","Tiền thu lãi cho vay, cổ tức, lợi nhuận được chia"]
["Asset",null,"152_","Thuế GTGT được khấu trừ HĐKD","152_",1,null,null,"31_","Tiền thu từ phát hành cổ phiếu, nhận vốn góp của CSH"]
[null,null,"153_","Thuế GTGT được khấu trừ HĐĐT","153_",1,null,null,"32_","Tiền trả lại vốn góp cho các chủ sở hữu"]
["Statistic",null,"158_","Tài sản ngắn hạn khác","158_",1,null,null,"33_","Tiền thu từ đi vay"]
[null,null,"210_","Các khoản phải thu dài hạn","210_",1,null,null,"34_","Tiền trả nợ gốc vay"]
["Financial",null,"220_","Tài sản cố định","220_",1,null,null,"36_","Cổ tức và lợi nhuận đã trả cho CSH"]
[null,null,"223_","Hao mòn TSCĐ","223_",1]
["Trust",null,"231_","Bất động sản đầu tư","231_",1]
[null,null,"232_","Hao mòn BĐS đầu tư","232_",1]
["Sub",null,"240_","Tài sản dở dang dài hạn","240_",1]
[null,null,"250_","Các khoản đầu tư tài chính dài hạn","250_",1]
["Fund",null,"260_","Tổng tài sản dài hạn khác","260_",1]
[null,null,"269_","Lợi thế thương mại","269_",1]
["Other",null,"311_","Phải trả người bán ngắn hạn","311_",-1]
[null,null,"312_","Người mua trả tiền trước","312_",-1]
[null,null,"313_","Thuế và các khoản phải nộp NN","313_",-1]
[null,null,"314_","Phải trả nhân viên","314_",-1]
[null,null,"315_","Chi phí phải trả ngắn hạn","315_",-1]
[null,null,"318_","Doanh thu chưa thực hiện ngắn hạn","318_",-1]
[null,null,"319_","Các khoản phải trả ngắn hạn khác","319_",-1]
[null,null,"320_","Vay và nợ thuê tài chính ngắn hạn","320_",-1]
[null,null,"321_","Vay và nợ dài hạn đến hạn trả","321_",-1]
[null,null,"331_","Phải trả người bán dài hạn","331_",-1]
[null,null,"336_","Doanh thu chưa thực hiện dài hạn","336_",-1]
[null,null,"338_","Vay và nợ thuê tài chính dài hạn","338_",-1]
[null,null,"342_","Dự phòng phải trả dài hạn","342_",-1]
[null,null,"350_","Nợ dài hạn khác","350_",-1]
[null,null,"411_","Vốn đầu tư của chủ sở hữu","411_",-1]
[null,null,"412_","Thặng dư vốn cổ phần","412_",-1]
[null,null,"416_","Chênh lệch đánh giá lại tài sản","416_",-1]
[null,null,"421_","Lợi nhuận sau thuế chưa phân phối","421_",-1]
[null,null,"430_","Nguồn vốn khác","430_",-1]
[null,null,"621_","Chi phí NPL trực tiếp","421_"]
[null,null,"622_","Chi phí NC trực tiếp","421_"]
[null,null,"627_","Chi phí sản xuất chung","421_"]

{"sheet":"Trust","index":12,"n_rows":32,"n_cols":5,"rows_kept":32,"cut":false,"hidden":false,"merged":[]}
[]
[{"$f":"Site!A2","v":"𝓔𝓬𝓸𝓹𝓪𝓻𝓴"},null,"MỨC ĐỘ TIN CẬY","Là danh mục phân loại mức độ tin cậy của ngân sách"]
[{"$f":"Site!A3","v":"𝓜𝓪𝓷𝓪𝓰𝓮𝓶𝓮𝓷𝓽"}]
[]
[null,"_","Trust","Trust note","#"]
["Site",null,"Rất cao",null,1]
[null,null,"Cao","Chi thường xuyên, có căn cứ lập.",2]
["Fund center",null,"TB","Chi biến động theo kế hoạch, không có công thức, cần cấp cao hơn phê duyệt.",3]
[null,null,"Thấp","Chi theo kế hoạch (qua ĐMHM), không tự cập nhật khi kế hoạch thay đổi.",4]
["Profit center"]
[]
["Cost center"]
[]
["MIS code"]
[]
["Commit"]
[]
["Object"]
[]
["Asset"]
[]
["Statistic"]
[]
["Financial"]
[]
["Trust"]
[]
["Sub"]
[]
["Fund"]
[]
["Other"]

{"sheet":"Sub","index":13,"n_rows":32,"n_cols":6,"rows_kept":32,"cut":false,"hidden":false,"merged":[]}
[]
[{"$f":"Site!A2","v":"𝓔𝓬𝓸𝓹𝓪𝓻𝓴"},null,"MÃ PHỤ"]
[{"$f":"Site!A3","v":"𝓜𝓪𝓷𝓪𝓰𝓮𝓶𝓮𝓷𝓽"}]
[]
[null,"_","Sub code","Sub name","Properties","#"]
["Site"]
[]
["Fund center"]
[]
["Profit center"]
[]
["Cost center"]
[]
["MIS code"]
[]
["Commit"]
[]
["Object"]
[]
["Asset"]
[]
["Statistic"]
[]
["Financial"]
[]
["Trust"]
[]
["Sub"]
[]
["Fund"]
[]
["Other"]

{"sheet":"Fund","index":14,"n_rows":32,"n_cols":5,"rows_kept":32,"cut":false,"hidden":false,"merged":[]}
[]
[{"$f":"Site!A2","v":"𝓔𝓬𝓸𝓹𝓪𝓻𝓴"},null,"NGUỒN QUỸ"]
[{"$f":"Site!A3","v":"𝓜𝓪𝓷𝓪𝓰𝓮𝓶𝓮𝓷𝓽"}]
[]
[null,"_","Fund","Fund name","#"]
["Site",null,"CĐT","Chủ đầu tư",1]
[null,null,"QVH","Quỹ vận hành",2]
["Fund center",null,"QBT","Quỹ bảo trì",3]
[]
["Profit center"]
[]
["Cost center"]
[]
["MIS code"]
[]
["Commit"]
[]
["Object"]
[]
["Asset"]
[]
["Statistic"]
[]
["Financial"]
[]
["Trust"]
[]
["Sub"]
[]
["Fund"]
[]
["Other"]

{"sheet":"Other","index":15,"n_rows":32,"n_cols":4,"rows_kept":32,"cut":false,"hidden":false,"merged":[]}
[]
[{"$f":"Site!A2","v":"𝓔𝓬𝓸𝓹𝓪𝓻𝓴"},null,"SỐ THÁNG PHÂN BỔ"]
[{"$f":"Site!A3","v":"𝓜𝓪𝓷𝓪𝓰𝓮𝓶𝓮𝓷𝓽"}]
[]
[null,"_","KỲ PB","#"]
["Site",null,0,1]
[null,null,1,2]
["Fund center",null,2,3]
[null,null,3,4]
["Profit center",null,6,5]
[null,null,9,6]
["Cost center",null,12,7]
[null,null,15,8]
["MIS code",null,18,9]
[null,null,21,10]
["Commit",null,24,11]
[null,null,27,12]
["Object",null,30,13]
[null,null,33,14]
["Asset",null,36,15]
[null,null,39,16]
["Statistic",null,42,17]
[]
["Financial"]
[]
["Trust"]
[]
["Sub"]
[]
["Fund"]
[]
["Other"]